{"text_format":"3","workbook":"xlsx","n_sheets":2,"sheets":["Jadwal Kelas","Daftar Kelas"],"not_rendered":{"defined_names":17},"read":"whole","date_system":"1900"}

{"sheet":"Jadwal Kelas","index":0,"n_rows":56,"n_cols":9,"rows_kept":56,"merged":[[0,1,1,5],[0,8,1,8]]}
[null,"JADWAL KELAS",{"$nulls":4},"JADWAL MULAI","JANGKA WAKTU","Daftar Kelas"]
[{"$nulls":6},"08:00:00","15 MENIT"]
[null,"WAKTU","MINGGU","SENIN","SELASA","RABU","KAMIS","JUMAT","SABTU"]
[null,{"$f":"JadwalMulai","v":"08:00:00"},{"$f":"IFERROR(INDEX(DaftarKelas[],MATCH(SUMPRODUCT((DaftarKelas[HARI]=JadwalKelas[[#Headers],[MINGGU]])*(ROUNDDOWN($B4,10)>=ROUNDDOWN(DaftarKelas[WAKTU MULAI],10))*($B4<=DaftarKelas[WAKTU SELESAI]),DaftarKelas[UNIK]),DaftarKelas[UNIK],0),2),0)","v":0},{"$f":"IFERROR(INDEX(DaftarKelas[],MATCH(SUMPRODUCT((DaftarKelas[HARI]=JadwalKelas[[#Headers],[SENIN]])*(ROUNDDOWN($B4,10)>=ROUNDDOWN(DaftarKelas[WAKTU MULAI],10))*($B4<=DaftarKelas[WAKTU SELESAI]),DaftarKelas[UNIK]),DaftarKelas[UNIK],0),2),0)","v":0},{"$f":"IFERROR(INDEX(DaftarKelas[],MATCH(SUMPRODUCT((DaftarKelas[HARI]=JadwalKelas[[#Headers],[SELASA]])*(ROUNDDOWN($B4,10)>=ROUNDDOWN(DaftarKelas[WAKTU MULAI],10))*($B4<=DaftarKelas[WAKTU SELESAI]),DaftarKelas[UNIK]),DaftarKelas[UNIK],0),2),0)","v":0},{"$f":"IFERROR(INDEX(DaftarKelas[],MATCH(SUMPRODUCT((DaftarKelas[HARI]=JadwalKelas[[#Headers],[RABU]])*(ROUNDDOWN($B4,10)>=ROUNDDOWN(DaftarKelas[WAKTU MULAI],10))*($B4<=DaftarKelas[WAKTU SELESAI]),DaftarKelas[UNIK]),DaftarKelas[UNIK],0),2),0)","v":0},{"$f":"IFERROR(INDEX(DaftarKelas[],MATCH(SUMPRODUCT((DaftarKelas[HARI]=JadwalKelas[[#Headers],[KAMIS]])*(ROUNDDOWN($B4,10)>=ROUNDDOWN(DaftarKelas[WAKTU MULAI],10))*($B4<=DaftarKelas[WAKTU SELESAI]),DaftarKelas[UNIK]),DaftarKelas[UNIK],0),2),0)","v":0},{"$f":"IFERROR(INDEX(DaftarKelas[],MATCH(SUMPRODUCT((DaftarKelas[HARI]=JadwalKelas[[#Headers],[JUMAT]])*(ROUNDDOWN($B4,10)>=ROUNDDOWN(DaftarKelas[WAKTU MULAI],10))*($B4<=DaftarKelas[WAKTU SELESAI]),DaftarKelas[UNIK]),DaftarKelas[UNIK],0),2),0)","v":0},{"$f":"IFERROR(INDEX(DaftarKelas[],MATCH(SUMPRODUCT((DaftarKelas[HARI]=JadwalKelas[[#Headers],[SABTU]])*(ROUNDDOWN($B4,10)>=ROUNDDOWN(DaftarKelas[WAKTU MULAI],10))*($B4<=DaftarKelas[WAKTU SELESAI]),DaftarKelas[UNIK]),DaftarKelas[UNIK],0),2),0)","v":0}]
[null,{"$f":"B4+Penambahan","v":"08:15:00"},{"$f":"IFERROR(INDEX(DaftarKelas[],MATCH(SUMPRODUCT((DaftarKelas[HARI]=JadwalKelas[[#Headers],[MINGGU]])*(ROUNDDOWN($B5,10)>=ROUNDDOWN(DaftarKelas[WAKTU MULAI],10))*($B5<=DaftarKelas[WAKTU SELESAI]),DaftarKelas[UNIK]),DaftarKelas[UNIK],0),2),0)","v":0},{"$f":"IFERROR(INDEX(DaftarKelas[],MATCH(SUMPRODUCT((DaftarKelas[HARI]=JadwalKelas[[#Headers],[SENIN]])*(ROUNDDOWN($B5,10)>=ROUNDDOWN(DaftarKelas[WAKTU MULAI],10))*($B5<=DaftarKelas[WAKTU SELESAI]),DaftarKelas[UNIK]),DaftarKelas[UNIK],0),2),0)","v":"MTH-113"},{"$f":"IFERROR(INDEX(DaftarKelas[],MATCH(SUMPRODUCT((DaftarKelas[HARI]=JadwalKelas[[#Headers],[SELASA]])*(ROUNDDOWN($B5,10)>=ROUNDDOWN(DaftarKelas[WAKTU MULAI],10))*($B5<=DaftarKelas[WAKTU SELESAI]),DaftarKelas[UNIK]),DaftarKelas[UNIK],0),2),0)","v":0},{"$f":"IFERROR(INDEX(DaftarKelas[],MATCH(SUMPRODUCT((DaftarKelas[HARI]=JadwalKelas[[#Headers],[RABU]])*(ROUNDDOWN($B5,10)>=ROUNDDOWN(DaftarKelas[WAKTU MULAI],10))*($B5<=DaftarKelas[WAKTU SELESAI]),DaftarKelas[UNIK]),DaftarKelas[UNIK],0),2),0)","v":"MTH-113"},{"$f":"IFERROR(INDEX(DaftarKelas[],MATCH(SUMPRODUCT((DaftarKelas[HARI]=JadwalKelas[[#Headers],[KAMIS]])*(ROUNDDOWN($B5,10)>=ROUNDDOWN(DaftarKelas[WAKTU MULAI],10))*($B5<=DaftarKelas[WAKTU SELESAI]),DaftarKelas[UNIK]),DaftarKelas[UNIK],0),2),0)","v":0},{"$f":"IFERROR(INDEX(DaftarKelas[],MATCH(SUMPRODUCT((DaftarKelas[HARI]=JadwalKelas[[#Headers],[JUMAT]])*(ROUNDDOWN($B5,10)>=ROUNDDOWN(DaftarKelas[WAKTU MULAI],10))*($B5<=DaftarKelas[WAKTU SELESAI]),DaftarKelas[UNIK]),DaftarKelas[UNIK],0),2),0)","v":"MTH-113"},{"$f":"IFERROR(INDEX(DaftarKelas[],MATCH(SUMPRODUCT((DaftarKelas[HARI]=JadwalKelas[[#Headers],[SABTU]])*(ROUNDDOWN($B5,10)>=ROUNDDOWN(DaftarKelas[WAKTU MULAI],10))*($B5<=DaftarKelas[WAKTU SELESAI]),DaftarKelas[UNIK]),DaftarKelas[UNIK],0),2),0)","v":0}]
[null,"08:30:00",{"$f":"IFERROR(INDEX(DaftarKelas[],MATCH(SUMPRODUCT((DaftarKelas[HARI]=JadwalKelas[[#Headers],[MINGGU]])*(ROUNDDOWN($B6,10)>=ROUNDDOWN(DaftarKelas[WAKTU MULAI],10))*($B6<=DaftarKelas[WAKTU SELESAI]),DaftarKelas[UNIK]),DaftarKelas[UNIK],0),2),0)","v":0},{"$f":"IFERROR(INDEX(DaftarKelas[],MATCH(SUMPRODUCT((DaftarKelas[HARI]=JadwalKelas[[#Headers],[SENIN]])*(ROUNDDOWN($B6,10)>=ROUNDDOWN(DaftarKelas[WAKTU MULAI],10))*($B6<=DaftarKelas[WAKTU SELESAI]),DaftarKelas[UNIK]),DaftarKelas[UNIK],0),2),0)","v":"MTH-113"},{"$f":"IFERROR(INDEX(DaftarKelas[],MATCH(SUMPRODUCT((DaftarKelas[HARI]=JadwalKelas[[#Headers],[SELASA]])*(ROUNDDOWN($B6,10)>=ROUNDDOWN(DaftarKelas[WAKTU MULAI],10))*($B6<=DaftarKelas[WAKTU SELESAI]),DaftarKelas[UNIK]),DaftarKelas[UNIK],0),2),0)","v":0},{"$f":"IFERROR(INDEX(DaftarKelas[],MATCH(SUMPRODUCT((DaftarKelas[HARI]=JadwalKelas[[#Headers],[RABU]])*(ROUNDDOWN($B6,10)>=ROUNDDOWN(DaftarKelas[WAKTU MULAI],10))*($B6<=DaftarKelas[WAKTU SELESAI]),DaftarKelas[UNIK]),DaftarKelas[UNIK],0),2),0)","v":"MTH-113"},{"$f":"IFERROR(INDEX(DaftarKelas[],MATCH(SUMPRODUCT((DaftarKelas[HARI]=JadwalKelas[[#Headers],[KAMIS]])*(ROUNDDOWN($B6,10)>=ROUNDDOWN(DaftarKelas[WAKTU MULAI],10))*($B6<=DaftarKelas[WAKTU SELESAI]),DaftarKelas[UNIK]),DaftarKelas[UNIK],0),2),0)","v":0},{"$f":"IFERROR(INDEX(DaftarKelas[],MATCH(SUMPRODUCT((DaftarKelas[HARI]=JadwalKelas[[#Headers],[JUMAT]])*(ROUNDDOWN($B6,10)>=ROUNDDOWN(DaftarKelas[WAKTU MULAI],10))*($B6<=DaftarKelas[WAKTU SELESAI]),DaftarKelas[UNIK]),DaftarKelas[UNIK],0),2),0)","v":"MTH-113"},{"$f":"IFERROR(INDEX(DaftarKelas[],MATCH(SUMPRODUCT((DaftarKelas[HARI]=JadwalKelas[[#Headers],[SABTU]])*(ROUNDDOWN($B6,10)>=ROUNDDOWN(DaftarKelas[WAKTU MULAI],10))*($B6<=DaftarKelas[WAKTU SELESAI]),DaftarKelas[UNIK]),DaftarKelas[UNIK],0),2),0)","v":0}]
[null,"08:45:00",{"$f":"IFERROR(INDEX(DaftarKelas[],MATCH(SUMPRODUCT((DaftarKelas[HARI]=JadwalKelas[[#Headers],[MINGGU]])*(ROUNDDOWN($B7,10)>=ROUNDDOWN(DaftarKelas[WAKTU MULAI],10))*($B7<=DaftarKelas[WAKTU SELESAI]),DaftarKelas[UNIK]),DaftarKelas[UNIK],0),2),0)","v":0},{"$f":"IFERROR(INDEX(DaftarKelas[],MATCH(SUMPRODUCT((DaftarKelas[HARI]=JadwalKelas[[#Headers],[SENIN]])*(ROUNDDOWN($B7,10)>=ROUNDDOWN(DaftarKelas[WAKTU MULAI],10))*($B7<=DaftarKelas[WAKTU SELESAI]),DaftarKelas[UNIK]),DaftarKelas[UNIK],0),2),0)","v":"MTH-113"},{"$f":"IFERROR(INDEX(DaftarKelas[],MATCH(SUMPRODUCT((DaftarKelas[HARI]=JadwalKelas[[#Headers],[SELASA]])*(ROUNDDOWN($B7,10)>=ROUNDDOWN(DaftarKelas[WAKTU MULAI],10))*($B7<=DaftarKelas[WAKTU SELESAI]),DaftarKelas[UNIK]),DaftarKelas[UNIK],0),2),0)","v":0},{"$f":"IFERROR(INDEX(DaftarKelas[],MATCH(SUMPRODUCT((DaftarKelas[HARI]=JadwalKelas[[#Headers],[RABU]])*(ROUNDDOWN($B7,10)>=ROUNDDOWN(DaftarKelas[WAKTU MULAI],10))*($B7<=DaftarKelas[WAKTU SELESAI]),DaftarKelas[UNIK]),DaftarKelas[UNIK],0),2),0)","v":"MTH-113"},{"$f":"IFERROR(INDEX(DaftarKelas[],MATCH(SUMPRODUCT((DaftarKelas[HARI]=JadwalKelas[[#Headers],[KAMIS]])*(ROUNDDOWN($B7,10)>=ROUNDDOWN(DaftarKelas[WAKTU MULAI],10))*($B7<=DaftarKelas[WAKTU SELESAI]),DaftarKelas[UNIK]),DaftarKelas[UNIK],0),2),0)","v":0},{"$f":"IFERROR(INDEX(DaftarKelas[],MATCH(SUMPRODUCT((DaftarKelas[HARI]=JadwalKelas[[#Headers],[JUMAT]])*(ROUNDDOWN($B7,10)>=ROUNDDOWN(DaftarKelas[WAKTU MULAI],10))*($B7<=DaftarKelas[WAKTU SELESAI]),DaftarKelas[UNIK]),DaftarKelas[UNIK],0),2),0)","v":"MTH-113"},{"$f":"IFERROR(INDEX(DaftarKelas[],MATCH(SUMPRODUCT((DaftarKelas[HARI]=JadwalKelas[[#Headers],[SABTU]])*(ROUNDDOWN($B7,10)>=ROUNDDOWN(DaftarKelas[WAKTU MULAI],10))*($B7<=DaftarKelas[WAKTU SELESAI]),DaftarKelas[UNIK]),DaftarKelas[UNIK],0),2),0)","v":0}]
[null,"09:00:00",{"$f":"IFERROR(INDEX(DaftarKelas[],MATCH(SUMPRODUCT((DaftarKelas[HARI]=JadwalKelas[[#Headers],[MINGGU]])*(ROUNDDOWN($B8,10)>=ROUNDDOWN(DaftarKelas[WAKTU MULAI],10))*($B8<=DaftarKelas[WAKTU SELESAI]),DaftarKelas[UNIK]),DaftarKelas[UNIK],0),2),0)","v":0},{"$f":"IFERROR(INDEX(DaftarKelas[],MATCH(SUMPRODUCT((DaftarKelas[HARI]=JadwalKelas[[#Headers],[SENIN]])*(ROUNDDOWN($B8,10)>=ROUNDDOWN(DaftarKelas[WAKTU MULAI],10))*($B8<=DaftarKelas[WAKTU SELESAI]),DaftarKelas[UNIK]),DaftarKelas[UNIK],0),2),0)","v":"MTH-113"},{"$f":"IFERROR(INDEX(DaftarKelas[],MATCH(SUMPRODUCT((DaftarKelas[HARI]=JadwalKelas[[#Headers],[SELASA]])*(ROUNDDOWN($B8,10)>=ROUNDDOWN(DaftarKelas[WAKTU MULAI],10))*($B8<=DaftarKelas[WAKTU SELESAI]),DaftarKelas[UNIK]),DaftarKelas[UNIK],0),2),0)","v":0},{"$f":"IFERROR(INDEX(DaftarKelas[],MATCH(SUMPRODUCT((DaftarKelas[HARI]=JadwalKelas[[#Headers],[RABU]])*(ROUNDDOWN($B8,10)>=ROUNDDOWN(DaftarKelas[WAKTU MULAI],10))*($B8<=DaftarKelas[WAKTU SELESAI]),DaftarKelas[UNIK]),DaftarKelas[UNIK],0),2),0)","v":"MTH-113"},{"$f":"IFERROR(INDEX(DaftarKelas[],MATCH(SUMPRODUCT((DaftarKelas[HARI]=JadwalKelas[[#Headers],[KAMIS]])*(ROUNDDOWN($B8,10)>=ROUNDDOWN(DaftarKelas[WAKTU MULAI],10))*($B8<=DaftarKelas[WAKTU SELESAI]),DaftarKelas[UNIK]),DaftarKelas[UNIK],0),2),0)","v":0},{"$f":"IFERROR(INDEX(DaftarKelas[],MATCH(SUMPRODUCT((DaftarKelas[HARI]=JadwalKelas[[#Headers],[JUMAT]])*(ROUNDDOWN($B8,10)>=ROUNDDOWN(DaftarKelas[WAKTU MULAI],10))*($B8<=DaftarKelas[WAKTU SELESAI]),DaftarKelas[UNIK]),DaftarKelas[UNIK],0),2),0)","v":"MTH-113"},{"$f":"IFERROR(INDEX(DaftarKelas[],MATCH(SUMPRODUCT((DaftarKelas[HARI]=JadwalKelas[[#Headers],[SABTU]])*(ROUNDDOWN($B8,10)>=ROUNDDOWN(DaftarKelas[WAKTU MULAI],10))*($B8<=DaftarKelas[WAKTU SELESAI]),DaftarKelas[UNIK]),DaftarKelas[UNIK],0),2),0)","v":0}]
[null,"09:15:00",{"$f":"IFERROR(INDEX(DaftarKelas[],MATCH(SUMPRODUCT((DaftarKelas[HARI]=JadwalKelas[[#Headers],[MINGGU]])*(ROUNDDOWN($B9,10)>=ROUNDDOWN(DaftarKelas[WAKTU MULAI],10))*($B9<=DaftarKelas[WAKTU SELESAI]),DaftarKelas[UNIK]),DaftarKelas[UNIK],0),2),0)","v":0},{"$f":"IFERROR(INDEX(DaftarKelas[],MATCH(SUMPRODUCT((DaftarKelas[HARI]=JadwalKelas[[#Headers],[SENIN]])*(ROUNDDOWN($B9,10)>=ROUNDDOWN(DaftarKelas[WAKTU MULAI],10))*($B9<=DaftarKelas[WAKTU SELESAI]),DaftarKelas[UNIK]),DaftarKelas[UNIK],0),2),0)","v":"MTH-113"},{"$f":"IFERROR(INDEX(DaftarKelas[],MATCH(SUMPRODUCT((DaftarKelas[HARI]=JadwalKelas[[#Headers],[SELASA]])*(ROUNDDOWN($B9,10)>=ROUNDDOWN(DaftarKelas[WAKTU MULAI],10))*($B9<=DaftarKelas[WAKTU SELESAI]),DaftarKelas[UNIK]),DaftarKelas[UNIK],0),2),0)","v":0},{"$f":"IFERROR(INDEX(DaftarKelas[],MATCH(SUMPRODUCT((DaftarKelas[HARI]=JadwalKelas[[#Headers],[RABU]])*(ROUNDDOWN($B9,10)>=ROUNDDOWN(DaftarKelas[WAKTU MULAI],10))*($B9<=DaftarKelas[WAKTU SELESAI]),DaftarKelas[UNIK]),DaftarKelas[UNIK],0),2),0)","v":"MTH-113"},{"$f":"IFERROR(INDEX(DaftarKelas[],MATCH(SUMPRODUCT((DaftarKelas[HARI]=JadwalKelas[[#Headers],[KAMIS]])*(ROUNDDOWN($B9,10)>=ROUNDDOWN(DaftarKelas[WAKTU MULAI],10))*($B9<=DaftarKelas[WAKTU SELESAI]),DaftarKelas[UNIK]),DaftarKelas[UNIK],0),2),0)","v":0},{"$f":"IFERROR(INDEX(DaftarKelas[],MATCH(SUMPRODUCT((DaftarKelas[HARI]=JadwalKelas[[#Headers],[JUMAT]])*(ROUNDDOWN($B9,10)>=ROUNDDOWN(DaftarKelas[WAKTU MULAI],10))*($B9<=DaftarKelas[WAKTU SELESAI]),DaftarKelas[UNIK]),DaftarKelas[UNIK],0),2),0)","v":"MTH-113"},{"$f":"IFERROR(INDEX(DaftarKelas[],MATCH(SUMPRODUCT((DaftarKelas[HARI]=JadwalKelas[[#Headers],[SABTU]])*(ROUNDDOWN($B9,10)>=ROUNDDOWN(DaftarKelas[WAKTU MULAI],10))*($B9<=DaftarKelas[WAKTU SELESAI]),DaftarKelas[UNIK]),DaftarKelas[UNIK],0),2),0)","v":0}]
[null,"09:30:00",{"$f":"IFERROR(INDEX(DaftarKelas[],MATCH(SUMPRODUCT((DaftarKelas[HARI]=JadwalKelas[[#Headers],[MINGGU]])*(ROUNDDOWN($B10,10)>=ROUNDDOWN(DaftarKelas[WAKTU MULAI],10))*($B10<=DaftarKelas[WAKTU SELESAI]),DaftarKelas[UNIK]),DaftarKelas[UNIK],0),2),0)","v":0},{"$f":"IFERROR(INDEX(DaftarKelas[],MATCH(SUMPRODUCT((DaftarKelas[HARI]=JadwalKelas[[#Headers],[SENIN]])*(ROUNDDOWN($B10,10)>=ROUNDDOWN(DaftarKelas[WAKTU MULAI],10))*($B10<=DaftarKelas[WAKTU SELESAI]),DaftarKelas[UNIK]),DaftarKelas[UNIK],0),2),0)","v":0},{"$f":"IFERROR(INDEX(DaftarKelas[],MATCH(SUMPRODUCT((DaftarKelas[HARI]=JadwalKelas[[#Headers],[SELASA]])*(ROUNDDOWN($B10,10)>=ROUNDDOWN(DaftarKelas[WAKTU MULAI],10))*($B10<=DaftarKelas[WAKTU SELESAI]),DaftarKelas[UNIK]),DaftarKelas[UNIK],0),2),0)","v":0},{"$f":"IFERROR(INDEX(DaftarKelas[],MATCH(SUMPRODUCT((DaftarKelas[HARI]=JadwalKelas[[#Headers],[RABU]])*(ROUNDDOWN($B10,10)>=ROUNDDOWN(DaftarKelas[WAKTU MULAI],10))*($B10<=DaftarKelas[WAKTU SELESAI]),DaftarKelas[UNIK]),DaftarKelas[UNIK],0),2),0)","v":0},{"$f":"IFERROR(INDEX(DaftarKelas[],MATCH(SUMPRODUCT((DaftarKelas[HARI]=JadwalKelas[[#Headers],[KAMIS]])*(ROUNDDOWN($B10,10)>=ROUNDDOWN(DaftarKelas[WAKTU MULAI],10))*($B10<=DaftarKelas[WAKTU SELESAI]),DaftarKelas[UNIK]),DaftarKelas[UNIK],0),2),0)","v":0},{"$f":"IFERROR(INDEX(DaftarKelas[],MATCH(SUMPRODUCT((DaftarKelas[HARI]=JadwalKelas[[#Headers],[JUMAT]])*(ROUNDDOWN($B10,10)>=ROUNDDOWN(DaftarKelas[WAKTU MULAI],10))*($B10<=DaftarKelas[WAKTU SELESAI]),DaftarKelas[UNIK]),DaftarKelas[UNIK],0),2),0)","v":0},{"$f":"IFERROR(INDEX(DaftarKelas[],MATCH(SUMPRODUCT((DaftarKelas[HARI]=JadwalKelas[[#Headers],[SABTU]])*(ROUNDDOWN($B10,10)>=ROUNDDOWN(DaftarKelas[WAKTU MULAI],10))*($B10<=DaftarKelas[WAKTU SELESAI]),DaftarKelas[UNIK]),DaftarKelas[UNIK],0),2),0)","v":0}]
[null,"09:45:00",{"$f":"IFERROR(INDEX(DaftarKelas[],MATCH(SUMPRODUCT((DaftarKelas[HARI]=JadwalKelas[[#Headers],[MINGGU]])*(ROUNDDOWN($B11,10)>=ROUNDDOWN(DaftarKelas[WAKTU MULAI],10))*($B11<=DaftarKelas[WAKTU SELESAI]),DaftarKelas[UNIK]),DaftarKelas[UNIK],0),2),0)","v":0},{"$f":"IFERROR(INDEX(DaftarKelas[],MATCH(SUMPRODUCT((DaftarKelas[HARI]=JadwalKelas[[#Headers],[SENIN]])*(ROUNDDOWN($B11,10)>=ROUNDDOWN(DaftarKelas[WAKTU MULAI],10))*($B11<=DaftarKelas[WAKTU SELESAI]),DaftarKelas[UNIK]),DaftarKelas[UNIK],0),2),0)","v":0},{"$f":"IFERROR(INDEX(DaftarKelas[],MATCH(SUMPRODUCT((DaftarKelas[HARI]=JadwalKelas[[#Headers],[SELASA]])*(ROUNDDOWN($B11,10)>=ROUNDDOWN(DaftarKelas[WAKTU MULAI],10))*($B11<=DaftarKelas[WAKTU SELESAI]),DaftarKelas[UNIK]),DaftarKelas[UNIK],0),2),0)","v":0},{"$f":"IFERROR(INDEX(DaftarKelas[],MATCH(SUMPRODUCT((DaftarKelas[HARI]=JadwalKelas[[#Headers],[RABU]])*(ROUNDDOWN($B11,10)>=ROUNDDOWN(DaftarKelas[WAKTU MULAI],10))*($B11<=DaftarKelas[WAKTU SELESAI]),DaftarKelas[UNIK]),DaftarKelas[UNIK],0),2),0)","v":0},{"$f":"IFERROR(INDEX(DaftarKelas[],MATCH(SUMPRODUCT((DaftarKelas[HARI]=JadwalKelas[[#Headers],[KAMIS]])*(ROUNDDOWN($B11,10)>=ROUNDDOWN(DaftarKelas[WAKTU MULAI],10))*($B11<=DaftarKelas[WAKTU SELESAI]),DaftarKelas[UNIK]),DaftarKelas[UNIK],0),2),0)","v":0},{"$f":"IFERROR(INDEX(DaftarKelas[],MATCH(SUMPRODUCT((DaftarKelas[HARI]=JadwalKelas[[#Headers],[JUMAT]])*(ROUNDDOWN($B11,10)>=ROUNDDOWN(DaftarKelas[WAKTU MULAI],10))*($B11<=DaftarKelas[WAKTU SELESAI]),DaftarKelas[UNIK]),DaftarKelas[UNIK],0),2),0)","v":0},{"$f":"IFERROR(INDEX(DaftarKelas[],MATCH(SUMPRODUCT((DaftarKelas[HARI]=JadwalKelas[[#Headers],[SABTU]])*(ROUNDDOWN($B11,10)>=ROUNDDOWN(DaftarKelas[WAKTU MULAI],10))*($B11<=DaftarKelas[WAKTU SELESAI]),DaftarKelas[UNIK]),DaftarKelas[UNIK],0),2),0)","v":0}]
[null,"10:00:00",{"$f":"IFERROR(INDEX(DaftarKelas[],MATCH(SUMPRODUCT((DaftarKelas[HARI]=JadwalKelas[[#Headers],[MINGGU]])*(ROUNDDOWN($B12,10)>=ROUNDDOWN(DaftarKelas[WAKTU MULAI],10))*($B12<=DaftarKelas[WAKTU SELESAI]),DaftarKelas[UNIK]),DaftarKelas[UNIK],0),2),0)","v":0},{"$f":"IFERROR(INDEX(DaftarKelas[],MATCH(SUMPRODUCT((DaftarKelas[HARI]=JadwalKelas[[#Headers],[SENIN]])*(ROUNDDOWN($B12,10)>=ROUNDDOWN(DaftarKelas[WAKTU MULAI],10))*($B12<=DaftarKelas[WAKTU SELESAI]),DaftarKelas[UNIK]),DaftarKelas[UNIK],0),2),0)","v":0},{"$f":"IFERROR(INDEX(DaftarKelas[],MATCH(SUMPRODUCT((DaftarKelas[HARI]=JadwalKelas[[#Headers],[SELASA]])*(ROUNDDOWN($B12,10)>=ROUNDDOWN(DaftarKelas[WAKTU MULAI],10))*($B12<=DaftarKelas[WAKTU SELESAI]),DaftarKelas[UNIK]),DaftarKelas[UNIK],0),2),0)","v":0},{"$f":"IFERROR(INDEX(DaftarKelas[],MATCH(SUMPRODUCT((DaftarKelas[HARI]=JadwalKelas[[#Headers],[RABU]])*(ROUNDDOWN($B12,10)>=ROUNDDOWN(DaftarKelas[WAKTU MULAI],10))*($B12<=DaftarKelas[WAKTU SELESAI]),DaftarKelas[UNIK]),DaftarKelas[UNIK],0),2),0)","v":0},{"$f":"IFERROR(INDEX(DaftarKelas[],MATCH(SUMPRODUCT((DaftarKelas[HARI]=JadwalKelas[[#Headers],[KAMIS]])*(ROUNDDOWN($B12,10)>=ROUNDDOWN(DaftarKelas[WAKTU MULAI],10))*($B12<=DaftarKelas[WAKTU SELESAI]),DaftarKelas[UNIK]),DaftarKelas[UNIK],0),2),0)","v":0},{"$f":"IFERROR(INDEX(DaftarKelas[],MATCH(SUMPRODUCT((DaftarKelas[HARI]=JadwalKelas[[#Headers],[JUMAT]])*(ROUNDDOWN($B12,10)>=ROUNDDOWN(DaftarKelas[WAKTU MULAI],10))*($B12<=DaftarKelas[WAKTU SELESAI]),DaftarKelas[UNIK]),DaftarKelas[UNIK],0),2),0)","v":0},{"$f":"IFERROR(INDEX(DaftarKelas[],MATCH(SUMPRODUCT((DaftarKelas[HARI]=JadwalKelas[[#Headers],[SABTU]])*(ROUNDDOWN($B12,10)>=ROUNDDOWN(DaftarKelas[WAKTU MULAI],10))*($B12<=DaftarKelas[WAKTU SELESAI]),DaftarKelas[UNIK]),DaftarKelas[UNIK],0),2),0)","v":0}]
[null,"10:15:00",{"$f":"IFERROR(INDEX(DaftarKelas[],MATCH(SUMPRODUCT((DaftarKelas[HARI]=JadwalKelas[[#Headers],[MINGGU]])*(ROUNDDOWN($B13,10)>=ROUNDDOWN(DaftarKelas[WAKTU MULAI],10))*($B13<=DaftarKelas[WAKTU SELESAI]),DaftarKelas[UNIK]),DaftarKelas[UNIK],0),2),0)","v":0},{"$f":"IFERROR(INDEX(DaftarKelas[],MATCH(SUMPRODUCT((DaftarKelas[HARI]=JadwalKelas[[#Headers],[SENIN]])*(ROUNDDOWN($B13,10)>=ROUNDDOWN(DaftarKelas[WAKTU MULAI],10))*($B13<=DaftarKelas[WAKTU SELESAI]),DaftarKelas[UNIK]),DaftarKelas[UNIK],0),2),0)","v":0},{"$f":"IFERROR(INDEX(DaftarKelas[],MATCH(SUMPRODUCT((DaftarKelas[HARI]=JadwalKelas[[#Headers],[SELASA]])*(ROUNDDOWN($B13,10)>=ROUNDDOWN(DaftarKelas[WAKTU MULAI],10))*($B13<=DaftarKelas[WAKTU SELESAI]),DaftarKelas[UNIK]),DaftarKelas[UNIK],0),2),0)","v":0},{"$f":"IFERROR(INDEX(DaftarKelas[],MATCH(SUMPRODUCT((DaftarKelas[HARI]=JadwalKelas[[#Headers],[RABU]])*(ROUNDDOWN($B13,10)>=ROUNDDOWN(DaftarKelas[WAKTU MULAI],10))*($B13<=DaftarKelas[WAKTU SELESAI]),DaftarKelas[UNIK]),DaftarKelas[UNIK],0),2),0)","v":0},{"$f":"IFERROR(INDEX(DaftarKelas[],MATCH(SUMPRODUCT((DaftarKelas[HARI]=JadwalKelas[[#Headers],[KAMIS]])*(ROUNDDOWN($B13,10)>=ROUNDDOWN(DaftarKelas[WAKTU MULAI],10))*($B13<=DaftarKelas[WAKTU SELESAI]),DaftarKelas[UNIK]),DaftarKelas[UNIK],0),2),0)","v":0},{"$f":"IFERROR(INDEX(DaftarKelas[],MATCH(SUMPRODUCT((DaftarKelas[HARI]=JadwalKelas[[#Headers],[JUMAT]])*(ROUNDDOWN($B13,10)>=ROUNDDOWN(DaftarKelas[WAKTU MULAI],10))*($B13<=DaftarKelas[WAKTU SELESAI]),DaftarKelas[UNIK]),DaftarKelas[UNIK],0),2),0)","v":0},{"$f":"IFERROR(INDEX(DaftarKelas[],MATCH(SUMPRODUCT((DaftarKelas[HARI]=JadwalKelas[[#Headers],[SABTU]])*(ROUNDDOWN($B13,10)>=ROUNDDOWN(DaftarKelas[WAKTU MULAI],10))*($B13<=DaftarKelas[WAKTU SELESAI]),DaftarKelas[UNIK]),DaftarKelas[UNIK],0),2),0)","v":0}]
[null,"10:30:00",{"$f":"IFERROR(INDEX(DaftarKelas[],MATCH(SUMPRODUCT((DaftarKelas[HARI]=JadwalKelas[[#Headers],[MINGGU]])*(ROUNDDOWN($B14,10)>=ROUNDDOWN(DaftarKelas[WAKTU MULAI],10))*($B14<=DaftarKelas[WAKTU SELESAI]),DaftarKelas[UNIK]),DaftarKelas[UNIK],0),2),0)","v":0},{"$f":"IFERROR(INDEX(DaftarKelas[],MATCH(SUMPRODUCT((DaftarKelas[HARI]=JadwalKelas[[#Headers],[SENIN]])*(ROUNDDOWN($B14,10)>=ROUNDDOWN(DaftarKelas[WAKTU MULAI],10))*($B14<=DaftarKelas[WAKTU SELESAI]),DaftarKelas[UNIK]),DaftarKelas[UNIK],0),2),0)","v":0},{"$f":"IFERROR(INDEX(DaftarKelas[],MATCH(SUMPRODUCT((DaftarKelas[HARI]=JadwalKelas[[#Headers],[SELASA]])*(ROUNDDOWN($B14,10)>=ROUNDDOWN(DaftarKelas[WAKTU MULAI],10))*($B14<=DaftarKelas[WAKTU SELESAI]),DaftarKelas[UNIK]),DaftarKelas[UNIK],0),2),0)","v":0},{"$f":"IFERROR(INDEX(DaftarKelas[],MATCH(SUMPRODUCT((DaftarKelas[HARI]=JadwalKelas[[#Headers],[RABU]])*(ROUNDDOWN($B14,10)>=ROUNDDOWN(DaftarKelas[WAKTU MULAI],10))*($B14<=DaftarKelas[WAKTU SELESAI]),DaftarKelas[UNIK]),DaftarKelas[UNIK],0),2),0)","v":0},{"$f":"IFERROR(INDEX(DaftarKelas[],MATCH(SUMPRODUCT((DaftarKelas[HARI]=JadwalKelas[[#Headers],[KAMIS]])*(ROUNDDOWN($B14,10)>=ROUNDDOWN(DaftarKelas[WAKTU MULAI],10))*($B14<=DaftarKelas[WAKTU SELESAI]),DaftarKelas[UNIK]),DaftarKelas[UNIK],0),2),0)","v":0},{"$f":"IFERROR(INDEX(DaftarKelas[],MATCH(SUMPRODUCT((DaftarKelas[HARI]=JadwalKelas[[#Headers],[JUMAT]])*(ROUNDDOWN($B14,10)>=ROUNDDOWN(DaftarKelas[WAKTU MULAI],10))*($B14<=DaftarKelas[WAKTU SELESAI]),DaftarKelas[UNIK]),DaftarKelas[UNIK],0),2),0)","v":0},{"$f":"IFERROR(INDEX(DaftarKelas[],MATCH(SUMPRODUCT((DaftarKelas[HARI]=JadwalKelas[[#Headers],[SABTU]])*(ROUNDDOWN($B14,10)>=ROUNDDOWN(DaftarKelas[WAKTU MULAI],10))*($B14<=DaftarKelas[WAKTU SELESAI]),DaftarKelas[UNIK]),DaftarKelas[UNIK],0),2),0)","v":0}]
[null,"10:45:00",{"$f":"IFERROR(INDEX(DaftarKelas[],MATCH(SUMPRODUCT((DaftarKelas[HARI]=JadwalKelas[[#Headers],[MINGGU]])*(ROUNDDOWN($B15,10)>=ROUNDDOWN(DaftarKelas[WAKTU MULAI],10))*($B15<=DaftarKelas[WAKTU SELESAI]),DaftarKelas[UNIK]),DaftarKelas[UNIK],0),2),0)","v":0},{"$f":"IFERROR(INDEX(DaftarKelas[],MATCH(SUMPRODUCT((DaftarKelas[HARI]=JadwalKelas[[#Headers],[SENIN]])*(ROUNDDOWN($B15,10)>=ROUNDDOWN(DaftarKelas[WAKTU MULAI],10))*($B15<=DaftarKelas[WAKTU SELESAI]),DaftarKelas[UNIK]),DaftarKelas[UNIK],0),2),0)","v":0},{"$f":"IFERROR(INDEX(DaftarKelas[],MATCH(SUMPRODUCT((DaftarKelas[HARI]=JadwalKelas[[#Headers],[SELASA]])*(ROUNDDOWN($B15,10)>=ROUNDDOWN(DaftarKelas[WAKTU MULAI],10))*($B15<=DaftarKelas[WAKTU SELESAI]),DaftarKelas[UNIK]),DaftarKelas[UNIK],0),2),0)","v":0},{"$f":"IFERROR(INDEX(DaftarKelas[],MATCH(SUMPRODUCT((DaftarKelas[HARI]=JadwalKelas[[#Headers],[RABU]])*(ROUNDDOWN($B15,10)>=ROUNDDOWN(DaftarKelas[WAKTU MULAI],10))*($B15<=DaftarKelas[WAKTU SELESAI]),DaftarKelas[UNIK]),DaftarKelas[UNIK],0),2),0)","v":0},{"$f":"IFERROR(INDEX(DaftarKelas[],MATCH(SUMPRODUCT((DaftarKelas[HARI]=JadwalKelas[[#Headers],[KAMIS]])*(ROUNDDOWN($B15,10)>=ROUNDDOWN(DaftarKelas[WAKTU MULAI],10))*($B15<=DaftarKelas[WAKTU SELESAI]),DaftarKelas[UNIK]),DaftarKelas[UNIK],0),2),0)","v":0},{"$f":"IFERROR(INDEX(DaftarKelas[],MATCH(SUMPRODUCT((DaftarKelas[HARI]=JadwalKelas[[#Headers],[JUMAT]])*(ROUNDDOWN($B15,10)>=ROUNDDOWN(DaftarKelas[WAKTU MULAI],10))*($B15<=DaftarKelas[WAKTU SELESAI]),DaftarKelas[UNIK]),DaftarKelas[UNIK],0),2),0)","v":0},{"$f":"IFERROR(INDEX(DaftarKelas[],MATCH(SUMPRODUCT((DaftarKelas[HARI]=JadwalKelas[[#Headers],[SABTU]])*(ROUNDDOWN($B15,10)>=ROUNDDOWN(DaftarKelas[WAKTU MULAI],10))*($B15<=DaftarKelas[WAKTU SELESAI]),DaftarKelas[UNIK]),DaftarKelas[UNIK],0),2),0)","v":0}]
[null,"11:00:00",{"$f":"IFERROR(INDEX(DaftarKelas[],MATCH(SUMPRODUCT((DaftarKelas[HARI]=JadwalKelas[[#Headers],[MINGGU]])*(ROUNDDOWN($B16,10)>=ROUNDDOWN(DaftarKelas[WAKTU MULAI],10))*($B16<=DaftarKelas[WAKTU SELESAI]),DaftarKelas[UNIK]),DaftarKelas[UNIK],0),2),0)","v":0},{"$f":"IFERROR(INDEX(DaftarKelas[],MATCH(SUMPRODUCT((DaftarKelas[HARI]=JadwalKelas[[#Headers],[SENIN]])*(ROUNDDOWN($B16,10)>=ROUNDDOWN(DaftarKelas[WAKTU MULAI],10))*($B16<=DaftarKelas[WAKTU SELESAI]),DaftarKelas[UNIK]),DaftarKelas[UNIK],0),2),0)","v":0},{"$f":"IFERROR(INDEX(DaftarKelas[],MATCH(SUMPRODUCT((DaftarKelas[HARI]=JadwalKelas[[#Headers],[SELASA]])*(ROUNDDOWN($B16,10)>=ROUNDDOWN(DaftarKelas[WAKTU MULAI],10))*($B16<=DaftarKelas[WAKTU SELESAI]),DaftarKelas[UNIK]),DaftarKelas[UNIK],0),2),0)","v":"HPE-295"},{"$f":"IFERROR(INDEX(DaftarKelas[],MATCH(SUMPRODUCT((DaftarKelas[HARI]=JadwalKelas[[#Headers],[RABU]])*(ROUNDDOWN($B16,10)>=ROUNDDOWN(DaftarKelas[WAKTU MULAI],10))*($B16<=DaftarKelas[WAKTU SELESAI]),DaftarKelas[UNIK]),DaftarKelas[UNIK],0),2),0)","v":0},{"$f":"IFERROR(INDEX(DaftarKelas[],MATCH(SUMPRODUCT((DaftarKelas[HARI]=JadwalKelas[[#Headers],[KAMIS]])*(ROUNDDOWN($B16,10)>=ROUNDDOWN(DaftarKelas[WAKTU MULAI],10))*($B16<=DaftarKelas[WAKTU SELESAI]),DaftarKelas[UNIK]),DaftarKelas[UNIK],0),2),0)","v":"HPE-295"},{"$f":"IFERROR(INDEX(DaftarKelas[],MATCH(SUMPRODUCT((DaftarKelas[HARI]=JadwalKelas[[#Headers],[JUMAT]])*(ROUNDDOWN($B16,10)>=ROUNDDOWN(DaftarKelas[WAKTU MULAI],10))*($B16<=DaftarKelas[WAKTU SELESAI]),DaftarKelas[UNIK]),DaftarKelas[UNIK],0),2),0)","v":0},{"$f":"IFERROR(INDEX(DaftarKelas[],MATCH(SUMPRODUCT((DaftarKelas[HARI]=JadwalKelas[[#Headers],[SABTU]])*(ROUNDDOWN($B16,10)>=ROUNDDOWN(DaftarKelas[WAKTU MULAI],10))*($B16<=DaftarKelas[WAKTU SELESAI]),DaftarKelas[UNIK]),DaftarKelas[UNIK],0),2),0)","v":0}]
[null,"11:15:00",{"$f":"IFERROR(INDEX(DaftarKelas[],MATCH(SUMPRODUCT((DaftarKelas[HARI]=JadwalKelas[[#Headers],[MINGGU]])*(ROUNDDOWN($B17,10)>=ROUNDDOWN(DaftarKelas[WAKTU MULAI],10))*($B17<=DaftarKelas[WAKTU SELESAI]),DaftarKelas[UNIK]),DaftarKelas[UNIK],0),2),0)","v":0},{"$f":"IFERROR(INDEX(DaftarKelas[],MATCH(SUMPRODUCT((DaftarKelas[HARI]=JadwalKelas[[#Headers],[SENIN]])*(ROUNDDOWN($B17,10)>=ROUNDDOWN(DaftarKelas[WAKTU MULAI],10))*($B17<=DaftarKelas[WAKTU SELESAI]),DaftarKelas[UNIK]),DaftarKelas[UNIK],0),2),0)","v":0},{"$f":"IFERROR(INDEX(DaftarKelas[],MATCH(SUMPRODUCT((DaftarKelas[HARI]=JadwalKelas[[#Headers],[SELASA]])*(ROUNDDOWN($B17,10)>=ROUNDDOWN(DaftarKelas[WAKTU MULAI],10))*($B17<=DaftarKelas[WAKTU SELESAI]),DaftarKelas[UNIK]),DaftarKelas[UNIK],0),2),0)","v":"HPE-295"},{"$f":"IFERROR(INDEX(DaftarKelas[],MATCH(SUMPRODUCT((DaftarKelas[HARI]=JadwalKelas[[#Headers],[RABU]])*(ROUNDDOWN($B17,10)>=ROUNDDOWN(DaftarKelas[WAKTU MULAI],10))*($B17<=DaftarKelas[WAKTU SELESAI]),DaftarKelas[UNIK]),DaftarKelas[UNIK],0),2),0)","v":0},{"$f":"IFERROR(INDEX(DaftarKelas[],MATCH(SUMPRODUCT((DaftarKelas[HARI]=JadwalKelas[[#Headers],[KAMIS]])*(ROUNDDOWN($B17,10)>=ROUNDDOWN(DaftarKelas[WAKTU MULAI],10))*($B17<=DaftarKelas[WAKTU SELESAI]),DaftarKelas[UNIK]),DaftarKelas[UNIK],0),2),0)","v":"HPE-295"},{"$f":"IFERROR(INDEX(DaftarKelas[],MATCH(SUMPRODUCT((DaftarKelas[HARI]=JadwalKelas[[#Headers],[JUMAT]])*(ROUNDDOWN($B17,10)>=ROUNDDOWN(DaftarKelas[WAKTU MULAI],10))*($B17<=DaftarKelas[WAKTU SELESAI]),DaftarKelas[UNIK]),DaftarKelas[UNIK],0),2),0)","v":0},{"$f":"IFERROR(INDEX(DaftarKelas[],MATCH(SUMPRODUCT((DaftarKelas[HARI]=JadwalKelas[[#Headers],[SABTU]])*(ROUNDDOWN($B17,10)>=ROUNDDOWN(DaftarKelas[WAKTU MULAI],10))*($B17<=DaftarKelas[WAKTU SELESAI]),DaftarKelas[UNIK]),DaftarKelas[UNIK],0),2),0)","v":0}]
[null,"11:30:00",{"$f":"IFERROR(INDEX(DaftarKelas[],MATCH(SUMPRODUCT((DaftarKelas[HARI]=JadwalKelas[[#Headers],[MINGGU]])*(ROUNDDOWN($B18,10)>=ROUNDDOWN(DaftarKelas[WAKTU MULAI],10))*($B18<=DaftarKelas[WAKTU SELESAI]),DaftarKelas[UNIK]),DaftarKelas[UNIK],0),2),0)","v":0},{"$f":"IFERROR(INDEX(DaftarKelas[],MATCH(SUMPRODUCT((DaftarKelas[HARI]=JadwalKelas[[#Headers],[SENIN]])*(ROUNDDOWN($B18,10)>=ROUNDDOWN(DaftarKelas[WAKTU MULAI],10))*($B18<=DaftarKelas[WAKTU SELESAI]),DaftarKelas[UNIK]),DaftarKelas[UNIK],0),2),0)","v":0},{"$f":"IFERROR(INDEX(DaftarKelas[],MATCH(SUMPRODUCT((DaftarKelas[HARI]=JadwalKelas[[#Headers],[SELASA]])*(ROUNDDOWN($B18,10)>=ROUNDDOWN(DaftarKelas[WAKTU MULAI],10))*($B18<=DaftarKelas[WAKTU SELESAI]),DaftarKelas[UNIK]),DaftarKelas[UNIK],0),2),0)","v":"HPE-295"},{"$f":"IFERROR(INDEX(DaftarKelas[],MATCH(SUMPRODUCT((DaftarKelas[HARI]=JadwalKelas[[#Headers],[RABU]])*(ROUNDDOWN($B18,10)>=ROUNDDOWN(DaftarKelas[WAKTU MULAI],10))*($B18<=DaftarKelas[WAKTU SELESAI]),DaftarKelas[UNIK]),DaftarKelas[UNIK],0),2),0)","v":0},{"$f":"IFERROR(INDEX(DaftarKelas[],MATCH(SUMPRODUCT((DaftarKelas[HARI]=JadwalKelas[[#Headers],[KAMIS]])*(ROUNDDOWN($B18,10)>=ROUNDDOWN(DaftarKelas[WAKTU MULAI],10))*($B18<=DaftarKelas[WAKTU SELESAI]),DaftarKelas[UNIK]),DaftarKelas[UNIK],0),2),0)","v":"HPE-295"},{"$f":"IFERROR(INDEX(DaftarKelas[],MATCH(SUMPRODUCT((DaftarKelas[HARI]=JadwalKelas[[#Headers],[JUMAT]])*(ROUNDDOWN($B18,10)>=ROUNDDOWN(DaftarKelas[WAKTU MULAI],10))*($B18<=DaftarKelas[WAKTU SELESAI]),DaftarKelas[UNIK]),DaftarKelas[UNIK],0),2),0)","v":0},{"$f":"IFERROR(INDEX(DaftarKelas[],MATCH(SUMPRODUCT((DaftarKelas[HARI]=JadwalKelas[[#Headers],[SABTU]])*(ROUNDDOWN($B18,10)>=ROUNDDOWN(DaftarKelas[WAKTU MULAI],10))*($B18<=DaftarKelas[WAKTU SELESAI]),DaftarKelas[UNIK]),DaftarKelas[UNIK],0),2),0)","v":0}]
[null,"11:45:00",{"$f":"IFERROR(INDEX(DaftarKelas[],MATCH(SUMPRODUCT((DaftarKelas[HARI]=JadwalKelas[[#Headers],[MINGGU]])*(ROUNDDOWN($B19,10)>=ROUNDDOWN(DaftarKelas[WAKTU MULAI],10))*($B19<=DaftarKelas[WAKTU SELESAI]),DaftarKelas[UNIK]),DaftarKelas[UNIK],0),2),0)","v":0},{"$f":"IFERROR(INDEX(DaftarKelas[],MATCH(SUMPRODUCT((DaftarKelas[HARI]=JadwalKelas[[#Headers],[SENIN]])*(ROUNDDOWN($B19,10)>=ROUNDDOWN(DaftarKelas[WAKTU MULAI],10))*($B19<=DaftarKelas[WAKTU SELESAI]),DaftarKelas[UNIK]),DaftarKelas[UNIK],0),2),0)","v":0},{"$f":"IFERROR(INDEX(DaftarKelas[],MATCH(SUMPRODUCT((DaftarKelas[HARI]=JadwalKelas[[#Headers],[SELASA]])*(ROUNDDOWN($B19,10)>=ROUNDDOWN(DaftarKelas[WAKTU MULAI],10))*($B19<=DaftarKelas[WAKTU SELESAI]),DaftarKelas[UNIK]),DaftarKelas[UNIK],0),2),0)","v":"HPE-295"},{"$f":"IFERROR(INDEX(DaftarKelas[],MATCH(SUMPRODUCT((DaftarKelas[HARI]=JadwalKelas[[#Headers],[RABU]])*(ROUNDDOWN($B19,10)>=ROUNDDOWN(DaftarKelas[WAKTU MULAI],10))*($B19<=DaftarKelas[WAKTU SELESAI]),DaftarKelas[UNIK]),DaftarKelas[UNIK],0),2),0)","v":0},{"$f":"IFERROR(INDEX(DaftarKelas[],MATCH(SUMPRODUCT((DaftarKelas[HARI]=JadwalKelas[[#Headers],[KAMIS]])*(ROUNDDOWN($B19,10)>=ROUNDDOWN(DaftarKelas[WAKTU MULAI],10))*($B19<=DaftarKelas[WAKTU SELESAI]),DaftarKelas[UNIK]),DaftarKelas[UNIK],0),2),0)","v":"HPE-295"},{"$f":"IFERROR(INDEX(DaftarKelas[],MATCH(SUMPRODUCT((DaftarKelas[HARI]=JadwalKelas[[#Headers],[JUMAT]])*(ROUNDDOWN($B19,10)>=ROUNDDOWN(DaftarKelas[WAKTU MULAI],10))*($B19<=DaftarKelas[WAKTU SELESAI]),DaftarKelas[UNIK]),DaftarKelas[UNIK],0),2),0)","v":0},{"$f":"IFERROR(INDEX(DaftarKelas[],MATCH(SUMPRODUCT((DaftarKelas[HARI]=JadwalKelas[[#Headers],[SABTU]])*(ROUNDDOWN($B19,10)>=ROUNDDOWN(DaftarKelas[WAKTU MULAI],10))*($B19<=DaftarKelas[WAKTU SELESAI]),DaftarKelas[UNIK]),DaftarKelas[UNIK],0),2),0)","v":0}]
[null,"12:00:00",{"$f":"IFERROR(INDEX(DaftarKelas[],MATCH(SUMPRODUCT((DaftarKelas[HARI]=JadwalKelas[[#Headers],[MINGGU]])*(ROUNDDOWN($B20,10)>=ROUNDDOWN(DaftarKelas[WAKTU MULAI],10))*($B20<=DaftarKelas[WAKTU SELESAI]),DaftarKelas[UNIK]),DaftarKelas[UNIK],0),2),0)","v":0},{"$f":"IFERROR(INDEX(DaftarKelas[],MATCH(SUMPRODUCT((DaftarKelas[HARI]=JadwalKelas[[#Headers],[SENIN]])*(ROUNDDOWN($B20,10)>=ROUNDDOWN(DaftarKelas[WAKTU MULAI],10))*($B20<=DaftarKelas[WAKTU SELESAI]),DaftarKelas[UNIK]),DaftarKelas[UNIK],0),2),0)","v":0},{"$f":"IFERROR(INDEX(DaftarKelas[],MATCH(SUMPRODUCT((DaftarKelas[HARI]=JadwalKelas[[#Headers],[SELASA]])*(ROUNDDOWN($B20,10)>=ROUNDDOWN(DaftarKelas[WAKTU MULAI],10))*($B20<=DaftarKelas[WAKTU SELESAI]),DaftarKelas[UNIK]),DaftarKelas[UNIK],0),2),0)","v":"HPE-295"},{"$f":"IFERROR(INDEX(DaftarKelas[],MATCH(SUMPRODUCT((DaftarKelas[HARI]=JadwalKelas[[#Headers],[RABU]])*(ROUNDDOWN($B20,10)>=ROUNDDOWN(DaftarKelas[WAKTU MULAI],10))*($B20<=DaftarKelas[WAKTU SELESAI]),DaftarKelas[UNIK]),DaftarKelas[UNIK],0),2),0)","v":0},{"$f":"IFERROR(INDEX(DaftarKelas[],MATCH(SUMPRODUCT((DaftarKelas[HARI]=JadwalKelas[[#Headers],[KAMIS]])*(ROUNDDOWN($B20,10)>=ROUNDDOWN(DaftarKelas[WAKTU MULAI],10))*($B20<=DaftarKelas[WAKTU SELESAI]),DaftarKelas[UNIK]),DaftarKelas[UNIK],0),2),0)","v":"HPE-295"},{"$f":"IFERROR(INDEX(DaftarKelas[],MATCH(SUMPRODUCT((DaftarKelas[HARI]=JadwalKelas[[#Headers],[JUMAT]])*(ROUNDDOWN($B20,10)>=ROUNDDOWN(DaftarKelas[WAKTU MULAI],10))*($B20<=DaftarKelas[WAKTU SELESAI]),DaftarKelas[UNIK]),DaftarKelas[UNIK],0),2),0)","v":0},{"$f":"IFERROR(INDEX(DaftarKelas[],MATCH(SUMPRODUCT((DaftarKelas[HARI]=JadwalKelas[[#Headers],[SABTU]])*(ROUNDDOWN($B20,10)>=ROUNDDOWN(DaftarKelas[WAKTU MULAI],10))*($B20<=DaftarKelas[WAKTU SELESAI]),DaftarKelas[UNIK]),DaftarKelas[UNIK],0),2),0)","v":0}]
[null,"12:15:00",{"$f":"IFERROR(INDEX(DaftarKelas[],MATCH(SUMPRODUCT((DaftarKelas[HARI]=JadwalKelas[[#Headers],[MINGGU]])*(ROUNDDOWN($B21,10)>=ROUNDDOWN(DaftarKelas[WAKTU MULAI],10))*($B21<=DaftarKelas[WAKTU SELESAI]),DaftarKelas[UNIK]),DaftarKelas[UNIK],0),2),0)","v":0},{"$f":"IFERROR(INDEX(DaftarKelas[],MATCH(SUMPRODUCT((DaftarKelas[HARI]=JadwalKelas[[#Headers],[SENIN]])*(ROUNDDOWN($B21,10)>=ROUNDDOWN(DaftarKelas[WAKTU MULAI],10))*($B21<=DaftarKelas[WAKTU SELESAI]),DaftarKelas[UNIK]),DaftarKelas[UNIK],0),2),0)","v":0},{"$f":"IFERROR(INDEX(DaftarKelas[],MATCH(SUMPRODUCT((DaftarKelas[HARI]=JadwalKelas[[#Headers],[SELASA]])*(ROUNDDOWN($B21,10)>=ROUNDDOWN(DaftarKelas[WAKTU MULAI],10))*($B21<=DaftarKelas[WAKTU SELESAI]),DaftarKelas[UNIK]),DaftarKelas[UNIK],0),2),0)","v":0},{"$f":"IFERROR(INDEX(DaftarKelas[],MATCH(SUMPRODUCT((DaftarKelas[HARI]=JadwalKelas[[#Headers],[RABU]])*(ROUNDDOWN($B21,10)>=ROUNDDOWN(DaftarKelas[WAKTU MULAI],10))*($B21<=DaftarKelas[WAKTU SELESAI]),DaftarKelas[UNIK]),DaftarKelas[UNIK],0),2),0)","v":0},{"$f":"IFERROR(INDEX(DaftarKelas[],MATCH(SUMPRODUCT((DaftarKelas[HARI]=JadwalKelas[[#Headers],[KAMIS]])*(ROUNDDOWN($B21,10)>=ROUNDDOWN(DaftarKelas[WAKTU MULAI],10))*($B21<=DaftarKelas[WAKTU SELESAI]),DaftarKelas[UNIK]),DaftarKelas[UNIK],0),2),0)","v":0},{"$f":"IFERROR(INDEX(DaftarKelas[],MATCH(SUMPRODUCT((DaftarKelas[HARI]=JadwalKelas[[#Headers],[JUMAT]])*(ROUNDDOWN($B21,10)>=ROUNDDOWN(DaftarKelas[WAKTU MULAI],10))*($B21<=DaftarKelas[WAKTU SELESAI]),DaftarKelas[UNIK]),DaftarKelas[UNIK],0),2),0)","v":0},{"$f":"IFERROR(INDEX(DaftarKelas[],MATCH(SUMPRODUCT((DaftarKelas[HARI]=JadwalKelas[[#Headers],[SABTU]])*(ROUNDDOWN($B21,10)>=ROUNDDOWN(DaftarKelas[WAKTU MULAI],10))*($B21<=DaftarKelas[WAKTU SELESAI]),DaftarKelas[UNIK]),DaftarKelas[UNIK],0),2),0)","v":0}]
[null,"12:30:00",{"$f":"IFERROR(INDEX(DaftarKelas[],MATCH(SUMPRODUCT((DaftarKelas[HARI]=JadwalKelas[[#Headers],[MINGGU]])*(ROUNDDOWN($B22,10)>=ROUNDDOWN(DaftarKelas[WAKTU MULAI],10))*($B22<=DaftarKelas[WAKTU SELESAI]),DaftarKelas[UNIK]),DaftarKelas[UNIK],0),2),0)","v":0},{"$f":"IFERROR(INDEX(DaftarKelas[],MATCH(SUMPRODUCT((DaftarKelas[HARI]=JadwalKelas[[#Headers],[SENIN]])*(ROUNDDOWN($B22,10)>=ROUNDDOWN(DaftarKelas[WAKTU MULAI],10))*($B22<=DaftarKelas[WAKTU SELESAI]),DaftarKelas[UNIK]),DaftarKelas[UNIK],0),2),0)","v":0},{"$f":"IFERROR(INDEX(DaftarKelas[],MATCH(SUMPRODUCT((DaftarKelas[HARI]=JadwalKelas[[#Headers],[SELASA]])*(ROUNDDOWN($B22,10)>=ROUNDDOWN(DaftarKelas[WAKTU MULAI],10))*($B22<=DaftarKelas[WAKTU SELESAI]),DaftarKelas[UNIK]),DaftarKelas[UNIK],0),2),0)","v":0},{"$f":"IFERROR(INDEX(DaftarKelas[],MATCH(SUMPRODUCT((DaftarKelas[HARI]=JadwalKelas[[#Headers],[RABU]])*(ROUNDDOWN($B22,10)>=ROUNDDOWN(DaftarKelas[WAKTU MULAI],10))*($B22<=DaftarKelas[WAKTU SELESAI]),DaftarKelas[UNIK]),DaftarKelas[UNIK],0),2),0)","v":0},{"$f":"IFERROR(INDEX(DaftarKelas[],MATCH(SUMPRODUCT((DaftarKelas[HARI]=JadwalKelas[[#Headers],[KAMIS]])*(ROUNDDOWN($B22,10)>=ROUNDDOWN(DaftarKelas[WAKTU MULAI],10))*($B22<=DaftarKelas[WAKTU SELESAI]),DaftarKelas[UNIK]),DaftarKelas[UNIK],0),2),0)","v":0},{"$f":"IFERROR(INDEX(DaftarKelas[],MATCH(SUMPRODUCT((DaftarKelas[HARI]=JadwalKelas[[#Headers],[JUMAT]])*(ROUNDDOWN($B22,10)>=ROUNDDOWN(DaftarKelas[WAKTU MULAI],10))*($B22<=DaftarKelas[WAKTU SELESAI]),DaftarKelas[UNIK]),DaftarKelas[UNIK],0),2),0)","v":0},{"$f":"IFERROR(INDEX(DaftarKelas[],MATCH(SUMPRODUCT((DaftarKelas[HARI]=JadwalKelas[[#Headers],[SABTU]])*(ROUNDDOWN($B22,10)>=ROUNDDOWN(DaftarKelas[WAKTU MULAI],10))*($B22<=DaftarKelas[WAKTU SELESAI]),DaftarKelas[UNIK]),DaftarKelas[UNIK],0),2),0)","v":0}]
[null,"12:45:00",{"$f":"IFERROR(INDEX(DaftarKelas[],MATCH(SUMPRODUCT((DaftarKelas[HARI]=JadwalKelas[[#Headers],[MINGGU]])*(ROUNDDOWN($B23,10)>=ROUNDDOWN(DaftarKelas[WAKTU MULAI],10))*($B23<=DaftarKelas[WAKTU SELESAI]),DaftarKelas[UNIK]),DaftarKelas[UNIK],0),2),0)","v":0},{"$f":"IFERROR(INDEX(DaftarKelas[],MATCH(SUMPRODUCT((DaftarKelas[HARI]=JadwalKelas[[#Headers],[SENIN]])*(ROUNDDOWN($B23,10)>=ROUNDDOWN(DaftarKelas[WAKTU MULAI],10))*($B23<=DaftarKelas[WAKTU SELESAI]),DaftarKelas[UNIK]),DaftarKelas[UNIK],0),2),0)","v":0},{"$f":"IFERROR(INDEX(DaftarKelas[],MATCH(SUMPRODUCT((DaftarKelas[HARI]=JadwalKelas[[#Headers],[SELASA]])*(ROUNDDOWN($B23,10)>=ROUNDDOWN(DaftarKelas[WAKTU MULAI],10))*($B23<=DaftarKelas[WAKTU SELESAI]),DaftarKelas[UNIK]),DaftarKelas[UNIK],0),2),0)","v":0},{"$f":"IFERROR(INDEX(DaftarKelas[],MATCH(SUMPRODUCT((DaftarKelas[HARI]=JadwalKelas[[#Headers],[RABU]])*(ROUNDDOWN($B23,10)>=ROUNDDOWN(DaftarKelas[WAKTU MULAI],10))*($B23<=DaftarKelas[WAKTU SELESAI]),DaftarKelas[UNIK]),DaftarKelas[UNIK],0),2),0)","v":0},{"$f":"IFERROR(INDEX(DaftarKelas[],MATCH(SUMPRODUCT((DaftarKelas[HARI]=JadwalKelas[[#Headers],[KAMIS]])*(ROUNDDOWN($B23,10)>=ROUNDDOWN(DaftarKelas[WAKTU MULAI],10))*($B23<=DaftarKelas[WAKTU SELESAI]),DaftarKelas[UNIK]),DaftarKelas[UNIK],0),2),0)","v":0},{"$f":"IFERROR(INDEX(DaftarKelas[],MATCH(SUMPRODUCT((DaftarKelas[HARI]=JadwalKelas[[#Headers],[JUMAT]])*(ROUNDDOWN($B23,10)>=ROUNDDOWN(DaftarKelas[WAKTU MULAI],10))*($B23<=DaftarKelas[WAKTU SELESAI]),DaftarKelas[UNIK]),DaftarKelas[UNIK],0),2),0)","v":0},{"$f":"IFERROR(INDEX(DaftarKelas[],MATCH(SUMPRODUCT((DaftarKelas[HARI]=JadwalKelas[[#Headers],[SABTU]])*(ROUNDDOWN($B23,10)>=ROUNDDOWN(DaftarKelas[WAKTU MULAI],10))*($B23<=DaftarKelas[WAKTU SELESAI]),DaftarKelas[UNIK]),DaftarKelas[UNIK],0),2),0)","v":0}]
[null,"13:00:00",{"$f":"IFERROR(INDEX(DaftarKelas[],MATCH(SUMPRODUCT((DaftarKelas[HARI]=JadwalKelas[[#Headers],[MINGGU]])*(ROUNDDOWN($B24,10)>=ROUNDDOWN(DaftarKelas[WAKTU MULAI],10))*($B24<=DaftarKelas[WAKTU SELESAI]),DaftarKelas[UNIK]),DaftarKelas[UNIK],0),2),0)","v":0},{"$f":"IFERROR(INDEX(DaftarKelas[],MATCH(SUMPRODUCT((DaftarKelas[HARI]=JadwalKelas[[#Headers],[SENIN]])*(ROUNDDOWN($B24,10)>=ROUNDDOWN(DaftarKelas[WAKTU MULAI],10))*($B24<=DaftarKelas[WAKTU SELESAI]),DaftarKelas[UNIK]),DaftarKelas[UNIK],0),2),0)","v":"WR-121"},{"$f":"IFERROR(INDEX(DaftarKelas[],MATCH(SUMPRODUCT((DaftarKelas[HARI]=JadwalKelas[[#Headers],[SELASA]])*(ROUNDDOWN($B24,10)>=ROUNDDOWN(DaftarKelas[WAKTU MULAI],10))*($B24<=DaftarKelas[WAKTU SELESAI]),DaftarKelas[UNIK]),DaftarKelas[UNIK],0),2),0)","v":0},{"$f":"IFERROR(INDEX(DaftarKelas[],MATCH(SUMPRODUCT((DaftarKelas[HARI]=JadwalKelas[[#Headers],[RABU]])*(ROUNDDOWN($B24,10)>=ROUNDDOWN(DaftarKelas[WAKTU MULAI],10))*($B24<=DaftarKelas[WAKTU SELESAI]),DaftarKelas[UNIK]),DaftarKelas[UNIK],0),2),0)","v":"WR-121"},{"$f":"IFERROR(INDEX(DaftarKelas[],MATCH(SUMPRODUCT((DaftarKelas[HARI]=JadwalKelas[[#Headers],[KAMIS]])*(ROUNDDOWN($B24,10)>=ROUNDDOWN(DaftarKelas[WAKTU MULAI],10))*($B24<=DaftarKelas[WAKTU SELESAI]),DaftarKelas[UNIK]),DaftarKelas[UNIK],0),2),0)","v":0},{"$f":"IFERROR(INDEX(DaftarKelas[],MATCH(SUMPRODUCT((DaftarKelas[HARI]=JadwalKelas[[#Headers],[JUMAT]])*(ROUNDDOWN($B24,10)>=ROUNDDOWN(DaftarKelas[WAKTU MULAI],10))*($B24<=DaftarKelas[WAKTU SELESAI]),DaftarKelas[UNIK]),DaftarKelas[UNIK],0),2),0)","v":0},{"$f":"IFERROR(INDEX(DaftarKelas[],MATCH(SUMPRODUCT((DaftarKelas[HARI]=JadwalKelas[[#Headers],[SABTU]])*(ROUNDDOWN($B24,10)>=ROUNDDOWN(DaftarKelas[WAKTU MULAI],10))*($B24<=DaftarKelas[WAKTU SELESAI]),DaftarKelas[UNIK]),DaftarKelas[UNIK],0),2),0)","v":0}]
[null,"13:15:00",{"$f":"IFERROR(INDEX(DaftarKelas[],MATCH(SUMPRODUCT((DaftarKelas[HARI]=JadwalKelas[[#Headers],[MINGGU]])*(ROUNDDOWN($B25,10)>=ROUNDDOWN(DaftarKelas[WAKTU MULAI],10))*($B25<=DaftarKelas[WAKTU SELESAI]),DaftarKelas[UNIK]),DaftarKelas[UNIK],0),2),0)","v":0},{"$f":"IFERROR(INDEX(DaftarKelas[],MATCH(SUMPRODUCT((DaftarKelas[HARI]=JadwalKelas[[#Headers],[SENIN]])*(ROUNDDOWN($B25,10)>=ROUNDDOWN(DaftarKelas[WAKTU MULAI],10))*($B25<=DaftarKelas[WAKTU SELESAI]),DaftarKelas[UNIK]),DaftarKelas[UNIK],0),2),0)","v":"WR-121"},{"$f":"IFERROR(INDEX(DaftarKelas[],MATCH(SUMPRODUCT((DaftarKelas[HARI]=JadwalKelas[[#Headers],[SELASA]])*(ROUNDDOWN($B25,10)>=ROUNDDOWN(DaftarKelas[WAKTU MULAI],10))*($B25<=DaftarKelas[WAKTU SELESAI]),DaftarKelas[UNIK]),DaftarKelas[UNIK],0),2),0)","v":0},{"$f":"IFERROR(INDEX(DaftarKelas[],MATCH(SUMPRODUCT((DaftarKelas[HARI]=JadwalKelas[[#Headers],[RABU]])*(ROUNDDOWN($B25,10)>=ROUNDDOWN(DaftarKelas[WAKTU MULAI],10))*($B25<=DaftarKelas[WAKTU SELESAI]),DaftarKelas[UNIK]),DaftarKelas[UNIK],0),2),0)","v":"WR-121"},{"$f":"IFERROR(INDEX(DaftarKelas[],MATCH(SUMPRODUCT((DaftarKelas[HARI]=JadwalKelas[[#Headers],[KAMIS]])*(ROUNDDOWN($B25,10)>=ROUNDDOWN(DaftarKelas[WAKTU MULAI],10))*($B25<=DaftarKelas[WAKTU SELESAI]),DaftarKelas[UNIK]),DaftarKelas[UNIK],0),2),0)","v":0},{"$f":"IFERROR(INDEX(DaftarKelas[],MATCH(SUMPRODUCT((DaftarKelas[HARI]=JadwalKelas[[#Headers],[JUMAT]])*(ROUNDDOWN($B25,10)>=ROUNDDOWN(DaftarKelas[WAKTU MULAI],10))*($B25<=DaftarKelas[WAKTU SELESAI]),DaftarKelas[UNIK]),DaftarKelas[UNIK],0),2),0)","v":0},{"$f":"IFERROR(INDEX(DaftarKelas[],MATCH(SUMPRODUCT((DaftarKelas[HARI]=JadwalKelas[[#Headers],[SABTU]])*(ROUNDDOWN($B25,10)>=ROUNDDOWN(DaftarKelas[WAKTU MULAI],10))*($B25<=DaftarKelas[WAKTU SELESAI]),DaftarKelas[UNIK]),DaftarKelas[UNIK],0),2),0)","v":0}]
[null,"13:30:00",{"$f":"IFERROR(INDEX(DaftarKelas[],MATCH(SUMPRODUCT((DaftarKelas[HARI]=JadwalKelas[[#Headers],[MINGGU]])*(ROUNDDOWN($B26,10)>=ROUNDDOWN(DaftarKelas[WAKTU MULAI],10))*($B26<=DaftarKelas[WAKTU SELESAI]),DaftarKelas[UNIK]),DaftarKelas[UNIK],0),2),0)","v":0},{"$f":"IFERROR(INDEX(DaftarKelas[],MATCH(SUMPRODUCT((DaftarKelas[HARI]=JadwalKelas[[#Headers],[SENIN]])*(ROUNDDOWN($B26,10)>=ROUNDDOWN(DaftarKelas[WAKTU MULAI],10))*($B26<=DaftarKelas[WAKTU SELESAI]),DaftarKelas[UNIK]),DaftarKelas[UNIK],0),2),0)","v":"WR-121"},{"$f":"IFERROR(INDEX(DaftarKelas[],MATCH(SUMPRODUCT((DaftarKelas[HARI]=JadwalKelas[[#Headers],[SELASA]])*(ROUNDDOWN($B26,10)>=ROUNDDOWN(DaftarKelas[WAKTU MULAI],10))*($B26<=DaftarKelas[WAKTU SELESAI]),DaftarKelas[UNIK]),DaftarKelas[UNIK],0),2),0)","v":0},{"$f":"IFERROR(INDEX(DaftarKelas[],MATCH(SUMPRODUCT((DaftarKelas[HARI]=JadwalKelas[[#Headers],[RABU]])*(ROUNDDOWN($B26,10)>=ROUNDDOWN(DaftarKelas[WAKTU MULAI],10))*($B26<=DaftarKelas[WAKTU SELESAI]),DaftarKelas[UNIK]),DaftarKelas[UNIK],0),2),0)","v":"WR-121"},{"$f":"IFERROR(INDEX(DaftarKelas[],MATCH(SUMPRODUCT((DaftarKelas[HARI]=JadwalKelas[[#Headers],[KAMIS]])*(ROUNDDOWN($B26,10)>=ROUNDDOWN(DaftarKelas[WAKTU MULAI],10))*($B26<=DaftarKelas[WAKTU SELESAI]),DaftarKelas[UNIK]),DaftarKelas[UNIK],0),2),0)","v":0},{"$f":"IFERROR(INDEX(DaftarKelas[],MATCH(SUMPRODUCT((DaftarKelas[HARI]=JadwalKelas[[#Headers],[JUMAT]])*(ROUNDDOWN($B26,10)>=ROUNDDOWN(DaftarKelas[WAKTU MULAI],10))*($B26<=DaftarKelas[WAKTU SELESAI]),DaftarKelas[UNIK]),DaftarKelas[UNIK],0),2),0)","v":0},{"$f":"IFERROR(INDEX(DaftarKelas[],MATCH(SUMPRODUCT((DaftarKelas[HARI]=JadwalKelas[[#Headers],[SABTU]])*(ROUNDDOWN($B26,10)>=ROUNDDOWN(DaftarKelas[WAKTU MULAI],10))*($B26<=DaftarKelas[WAKTU SELESAI]),DaftarKelas[UNIK]),DaftarKelas[UNIK],0),2),0)","v":0}]
[null,"13:45:00",{"$f":"IFERROR(INDEX(DaftarKelas[],MATCH(SUMPRODUCT((DaftarKelas[HARI]=JadwalKelas[[#Headers],[MINGGU]])*(ROUNDDOWN($B27,10)>=ROUNDDOWN(DaftarKelas[WAKTU MULAI],10))*($B27<=DaftarKelas[WAKTU SELESAI]),DaftarKelas[UNIK]),DaftarKelas[UNIK],0),2),0)","v":0},{"$f":"IFERROR(INDEX(DaftarKelas[],MATCH(SUMPRODUCT((DaftarKelas[HARI]=JadwalKelas[[#Headers],[SENIN]])*(ROUNDDOWN($B27,10)>=ROUNDDOWN(DaftarKelas[WAKTU MULAI],10))*($B27<=DaftarKelas[WAKTU SELESAI]),DaftarKelas[UNIK]),DaftarKelas[UNIK],0),2),0)","v":"WR-121"},{"$f":"IFERROR(INDEX(DaftarKelas[],MATCH(SUMPRODUCT((DaftarKelas[HARI]=JadwalKelas[[#Headers],[SELASA]])*(ROUNDDOWN($B27,10)>=ROUNDDOWN(DaftarKelas[WAKTU MULAI],10))*($B27<=DaftarKelas[WAKTU SELESAI]),DaftarKelas[UNIK]),DaftarKelas[UNIK],0),2),0)","v":0},{"$f":"IFERROR(INDEX(DaftarKelas[],MATCH(SUMPRODUCT((DaftarKelas[HARI]=JadwalKelas[[#Headers],[RABU]])*(ROUNDDOWN($B27,10)>=ROUNDDOWN(DaftarKelas[WAKTU MULAI],10))*($B27<=DaftarKelas[WAKTU SELESAI]),DaftarKelas[UNIK]),DaftarKelas[UNIK],0),2),0)","v":"WR-121"},{"$f":"IFERROR(INDEX(DaftarKelas[],MATCH(SUMPRODUCT((DaftarKelas[HARI]=JadwalKelas[[#Headers],[KAMIS]])*(ROUNDDOWN($B27,10)>=ROUNDDOWN(DaftarKelas[WAKTU MULAI],10))*($B27<=DaftarKelas[WAKTU SELESAI]),DaftarKelas[UNIK]),DaftarKelas[UNIK],0),2),0)","v":0},{"$f":"IFERROR(INDEX(DaftarKelas[],MATCH(SUMPRODUCT((DaftarKelas[HARI]=JadwalKelas[[#Headers],[JUMAT]])*(ROUNDDOWN($B27,10)>=ROUNDDOWN(DaftarKelas[WAKTU MULAI],10))*($B27<=DaftarKelas[WAKTU SELESAI]),DaftarKelas[UNIK]),DaftarKelas[UNIK],0),2),0)","v":0},{"$f":"IFERROR(INDEX(DaftarKelas[],MATCH(SUMPRODUCT((DaftarKelas[HARI]=JadwalKelas[[#Headers],[SABTU]])*(ROUNDDOWN($B27,10)>=ROUNDDOWN(DaftarKelas[WAKTU MULAI],10))*($B27<=DaftarKelas[WAKTU SELESAI]),DaftarKelas[UNIK]),DaftarKelas[UNIK],0),2),0)","v":0}]
[null,"14:00:00",{"$f":"IFERROR(INDEX(DaftarKelas[],MATCH(SUMPRODUCT((DaftarKelas[HARI]=JadwalKelas[[#Headers],[MINGGU]])*(ROUNDDOWN($B28,10)>=ROUNDDOWN(DaftarKelas[WAKTU MULAI],10))*($B28<=DaftarKelas[WAKTU SELESAI]),DaftarKelas[UNIK]),DaftarKelas[UNIK],0),2),0)","v":0},{"$f":"IFERROR(INDEX(DaftarKelas[],MATCH(SUMPRODUCT((DaftarKelas[HARI]=JadwalKelas[[#Headers],[SENIN]])*(ROUNDDOWN($B28,10)>=ROUNDDOWN(DaftarKelas[WAKTU MULAI],10))*($B28<=DaftarKelas[WAKTU SELESAI]),DaftarKelas[UNIK]),DaftarKelas[UNIK],0),2),0)","v":"WR-121"},{"$f":"IFERROR(INDEX(DaftarKelas[],MATCH(SUMPRODUCT((DaftarKelas[HARI]=JadwalKelas[[#Headers],[SELASA]])*(ROUNDDOWN($B28,10)>=ROUNDDOWN(DaftarKelas[WAKTU MULAI],10))*($B28<=DaftarKelas[WAKTU SELESAI]),DaftarKelas[UNIK]),DaftarKelas[UNIK],0),2),0)","v":0},{"$f":"IFERROR(INDEX(DaftarKelas[],MATCH(SUMPRODUCT((DaftarKelas[HARI]=JadwalKelas[[#Headers],[RABU]])*(ROUNDDOWN($B28,10)>=ROUNDDOWN(DaftarKelas[WAKTU MULAI],10))*($B28<=DaftarKelas[WAKTU SELESAI]),DaftarKelas[UNIK]),DaftarKelas[UNIK],0),2),0)","v":"WR-121"},{"$f":"IFERROR(INDEX(DaftarKelas[],MATCH(SUMPRODUCT((DaftarKelas[HARI]=JadwalKelas[[#Headers],[KAMIS]])*(ROUNDDOWN($B28,10)>=ROUNDDOWN(DaftarKelas[WAKTU MULAI],10))*($B28<=DaftarKelas[WAKTU SELESAI]),DaftarKelas[UNIK]),DaftarKelas[UNIK],0),2),0)","v":0},{"$f":"IFERROR(INDEX(DaftarKelas[],MATCH(SUMPRODUCT((DaftarKelas[HARI]=JadwalKelas[[#Headers],[JUMAT]])*(ROUNDDOWN($B28,10)>=ROUNDDOWN(DaftarKelas[WAKTU MULAI],10))*($B28<=DaftarKelas[WAKTU SELESAI]),DaftarKelas[UNIK]),DaftarKelas[UNIK],0),2),0)","v":0},{"$f":"IFERROR(INDEX(DaftarKelas[],MATCH(SUMPRODUCT((DaftarKelas[HARI]=JadwalKelas[[#Headers],[SABTU]])*(ROUNDDOWN($B28,10)>=ROUNDDOWN(DaftarKelas[WAKTU MULAI],10))*($B28<=DaftarKelas[WAKTU SELESAI]),DaftarKelas[UNIK]),DaftarKelas[UNIK],0),2),0)","v":0}]
[null,"14:15:00",{"$f":"IFERROR(INDEX(DaftarKelas[],MATCH(SUMPRODUCT((DaftarKelas[HARI]=JadwalKelas[[#Headers],[MINGGU]])*(ROUNDDOWN($B29,10)>=ROUNDDOWN(DaftarKelas[WAKTU MULAI],10))*($B29<=DaftarKelas[WAKTU SELESAI]),DaftarKelas[UNIK]),DaftarKelas[UNIK],0),2),0)","v":0},{"$f":"IFERROR(INDEX(DaftarKelas[],MATCH(SUMPRODUCT((DaftarKelas[HARI]=JadwalKelas[[#Headers],[SENIN]])*(ROUNDDOWN($B29,10)>=ROUNDDOWN(DaftarKelas[WAKTU MULAI],10))*($B29<=DaftarKelas[WAKTU SELESAI]),DaftarKelas[UNIK]),DaftarKelas[UNIK],0),2),0)","v":0},{"$f":"IFERROR(INDEX(DaftarKelas[],MATCH(SUMPRODUCT((DaftarKelas[HARI]=JadwalKelas[[#Headers],[SELASA]])*(ROUNDDOWN($B29,10)>=ROUNDDOWN(DaftarKelas[WAKTU MULAI],10))*($B29<=DaftarKelas[WAKTU SELESAI]),DaftarKelas[UNIK]),DaftarKelas[UNIK],0),2),0)","v":0},{"$f":"IFERROR(INDEX(DaftarKelas[],MATCH(SUMPRODUCT((DaftarKelas[HARI]=JadwalKelas[[#Headers],[RABU]])*(ROUNDDOWN($B29,10)>=ROUNDDOWN(DaftarKelas[WAKTU MULAI],10))*($B29<=DaftarKelas[WAKTU SELESAI]),DaftarKelas[UNIK]),DaftarKelas[UNIK],0),2),0)","v":0},{"$f":"IFERROR(INDEX(DaftarKelas[],MATCH(SUMPRODUCT((DaftarKelas[HARI]=JadwalKelas[[#Headers],[KAMIS]])*(ROUNDDOWN($B29,10)>=ROUNDDOWN(DaftarKelas[WAKTU MULAI],10))*($B29<=DaftarKelas[WAKTU SELESAI]),DaftarKelas[UNIK]),DaftarKelas[UNIK],0),2),0)","v":0},{"$f":"IFERROR(INDEX(DaftarKelas[],MATCH(SUMPRODUCT((DaftarKelas[HARI]=JadwalKelas[[#Headers],[JUMAT]])*(ROUNDDOWN($B29,10)>=ROUNDDOWN(DaftarKelas[WAKTU MULAI],10))*($B29<=DaftarKelas[WAKTU SELESAI]),DaftarKelas[UNIK]),DaftarKelas[UNIK],0),2),0)","v":0},{"$f":"IFERROR(INDEX(DaftarKelas[],MATCH(SUMPRODUCT((DaftarKelas[HARI]=JadwalKelas[[#Headers],[SABTU]])*(ROUNDDOWN($B29,10)>=ROUNDDOWN(DaftarKelas[WAKTU MULAI],10))*($B29<=DaftarKelas[WAKTU SELESAI]),DaftarKelas[UNIK]),DaftarKelas[UNIK],0),2),0)","v":0}]
[null,"14:30:00",{"$f":"IFERROR(INDEX(DaftarKelas[],MATCH(SUMPRODUCT((DaftarKelas[HARI]=JadwalKelas[[#Headers],[MINGGU]])*(ROUNDDOWN($B30,10)>=ROUNDDOWN(DaftarKelas[WAKTU MULAI],10))*($B30<=DaftarKelas[WAKTU SELESAI]),DaftarKelas[UNIK]),DaftarKelas[UNIK],0),2),0)","v":0},{"$f":"IFERROR(INDEX(DaftarKelas[],MATCH(SUMPRODUCT((DaftarKelas[HARI]=JadwalKelas[[#Headers],[SENIN]])*(ROUNDDOWN($B30,10)>=ROUNDDOWN(DaftarKelas[WAKTU MULAI],10))*($B30<=DaftarKelas[WAKTU SELESAI]),DaftarKelas[UNIK]),DaftarKelas[UNIK],0),2),0)","v":0},{"$f":"IFERROR(INDEX(DaftarKelas[],MATCH(SUMPRODUCT((DaftarKelas[HARI]=JadwalKelas[[#Headers],[SELASA]])*(ROUNDDOWN($B30,10)>=ROUNDDOWN(DaftarKelas[WAKTU MULAI],10))*($B30<=DaftarKelas[WAKTU SELESAI]),DaftarKelas[UNIK]),DaftarKelas[UNIK],0),2),0)","v":0},{"$f":"IFERROR(INDEX(DaftarKelas[],MATCH(SUMPRODUCT((DaftarKelas[HARI]=JadwalKelas[[#Headers],[RABU]])*(ROUNDDOWN($B30,10)>=ROUNDDOWN(DaftarKelas[WAKTU MULAI],10))*($B30<=DaftarKelas[WAKTU SELESAI]),DaftarKelas[UNIK]),DaftarKelas[UNIK],0),2),0)","v":0},{"$f":"IFERROR(INDEX(DaftarKelas[],MATCH(SUMPRODUCT((DaftarKelas[HARI]=JadwalKelas[[#Headers],[KAMIS]])*(ROUNDDOWN($B30,10)>=ROUNDDOWN(DaftarKelas[WAKTU MULAI],10))*($B30<=DaftarKelas[WAKTU SELESAI]),DaftarKelas[UNIK]),DaftarKelas[UNIK],0),2),0)","v":0},{"$f":"IFERROR(INDEX(DaftarKelas[],MATCH(SUMPRODUCT((DaftarKelas[HARI]=JadwalKelas[[#Headers],[JUMAT]])*(ROUNDDOWN($B30,10)>=ROUNDDOWN(DaftarKelas[WAKTU MULAI],10))*($B30<=DaftarKelas[WAKTU SELESAI]),DaftarKelas[UNIK]),DaftarKelas[UNIK],0),2),0)","v":0},{"$f":"IFERROR(INDEX(DaftarKelas[],MATCH(SUMPRODUCT((DaftarKelas[HARI]=JadwalKelas[[#Headers],[SABTU]])*(ROUNDDOWN($B30,10)>=ROUNDDOWN(DaftarKelas[WAKTU MULAI],10))*($B30<=DaftarKelas[WAKTU SELESAI]),DaftarKelas[UNIK]),DaftarKelas[UNIK],0),2),0)","v":0}]
[null,"14:45:00",{"$f":"IFERROR(INDEX(DaftarKelas[],MATCH(SUMPRODUCT((DaftarKelas[HARI]=JadwalKelas[[#Headers],[MINGGU]])*(ROUNDDOWN($B31,10)>=ROUNDDOWN(DaftarKelas[WAKTU MULAI],10))*($B31<=DaftarKelas[WAKTU SELESAI]),DaftarKelas[UNIK]),DaftarKelas[UNIK],0),2),0)","v":0},{"$f":"IFERROR(INDEX(DaftarKelas[],MATCH(SUMPRODUCT((DaftarKelas[HARI]=JadwalKelas[[#Headers],[SENIN]])*(ROUNDDOWN($B31,10)>=ROUNDDOWN(DaftarKelas[WAKTU MULAI],10))*($B31<=DaftarKelas[WAKTU SELESAI]),DaftarKelas[UNIK]),DaftarKelas[UNIK],0),2),0)","v":0},{"$f":"IFERROR(INDEX(DaftarKelas[],MATCH(SUMPRODUCT((DaftarKelas[HARI]=JadwalKelas[[#Headers],[SELASA]])*(ROUNDDOWN($B31,10)>=ROUNDDOWN(DaftarKelas[WAKTU MULAI],10))*($B31<=DaftarKelas[WAKTU SELESAI]),DaftarKelas[UNIK]),DaftarKelas[UNIK],0),2),0)","v":0},{"$f":"IFERROR(INDEX(DaftarKelas[],MATCH(SUMPRODUCT((DaftarKelas[HARI]=JadwalKelas[[#Headers],[RABU]])*(ROUNDDOWN($B31,10)>=ROUNDDOWN(DaftarKelas[WAKTU MULAI],10))*($B31<=DaftarKelas[WAKTU SELESAI]),DaftarKelas[UNIK]),DaftarKelas[UNIK],0),2),0)","v":0},{"$f":"IFERROR(INDEX(DaftarKelas[],MATCH(SUMPRODUCT((DaftarKelas[HARI]=JadwalKelas[[#Headers],[KAMIS]])*(ROUNDDOWN($B31,10)>=ROUNDDOWN(DaftarKelas[WAKTU MULAI],10))*($B31<=DaftarKelas[WAKTU SELESAI]),DaftarKelas[UNIK]),DaftarKelas[UNIK],0),2),0)","v":0},{"$f":"IFERROR(INDEX(DaftarKelas[],MATCH(SUMPRODUCT((DaftarKelas[HARI]=JadwalKelas[[#Headers],[JUMAT]])*(ROUNDDOWN($B31,10)>=ROUNDDOWN(DaftarKelas[WAKTU MULAI],10))*($B31<=DaftarKelas[WAKTU SELESAI]),DaftarKelas[UNIK]),DaftarKelas[UNIK],0),2),0)","v":0},{"$f":"IFERROR(INDEX(DaftarKelas[],MATCH(SUMPRODUCT((DaftarKelas[HARI]=JadwalKelas[[#Headers],[SABTU]])*(ROUNDDOWN($B31,10)>=ROUNDDOWN(DaftarKelas[WAKTU MULAI],10))*($B31<=DaftarKelas[WAKTU SELESAI]),DaftarKelas[UNIK]),DaftarKelas[UNIK],0),2),0)","v":0}]
[null,"15:00:00",{"$f":"IFERROR(INDEX(DaftarKelas[],MATCH(SUMPRODUCT((DaftarKelas[HARI]=JadwalKelas[[#Headers],[MINGGU]])*(ROUNDDOWN($B32,10)>=ROUNDDOWN(DaftarKelas[WAKTU MULAI],10))*($B32<=DaftarKelas[WAKTU SELESAI]),DaftarKelas[UNIK]),DaftarKelas[UNIK],0),2),0)","v":0},{"$f":"IFERROR(INDEX(DaftarKelas[],MATCH(SUMPRODUCT((DaftarKelas[HARI]=JadwalKelas[[#Headers],[SENIN]])*(ROUNDDOWN($B32,10)>=ROUNDDOWN(DaftarKelas[WAKTU MULAI],10))*($B32<=DaftarKelas[WAKTU SELESAI]),DaftarKelas[UNIK]),DaftarKelas[UNIK],0),2),0)","v":0},{"$f":"IFERROR(INDEX(DaftarKelas[],MATCH(SUMPRODUCT((DaftarKelas[HARI]=JadwalKelas[[#Headers],[SELASA]])*(ROUNDDOWN($B32,10)>=ROUNDDOWN(DaftarKelas[WAKTU MULAI],10))*($B32<=DaftarKelas[WAKTU SELESAI]),DaftarKelas[UNIK]),DaftarKelas[UNIK],0),2),0)","v":0},{"$f":"IFERROR(INDEX(DaftarKelas[],MATCH(SUMPRODUCT((DaftarKelas[HARI]=JadwalKelas[[#Headers],[RABU]])*(ROUNDDOWN($B32,10)>=ROUNDDOWN(DaftarKelas[WAKTU MULAI],10))*($B32<=DaftarKelas[WAKTU SELESAI]),DaftarKelas[UNIK]),DaftarKelas[UNIK],0),2),0)","v":0},{"$f":"IFERROR(INDEX(DaftarKelas[],MATCH(SUMPRODUCT((DaftarKelas[HARI]=JadwalKelas[[#Headers],[KAMIS]])*(ROUNDDOWN($B32,10)>=ROUNDDOWN(DaftarKelas[WAKTU MULAI],10))*($B32<=DaftarKelas[WAKTU SELESAI]),DaftarKelas[UNIK]),DaftarKelas[UNIK],0),2),0)","v":0},{"$f":"IFERROR(INDEX(DaftarKelas[],MATCH(SUMPRODUCT((DaftarKelas[HARI]=JadwalKelas[[#Headers],[JUMAT]])*(ROUNDDOWN($B32,10)>=ROUNDDOWN(DaftarKelas[WAKTU MULAI],10))*($B32<=DaftarKelas[WAKTU SELESAI]),DaftarKelas[UNIK]),DaftarKelas[UNIK],0),2),0)","v":0},{"$f":"IFERROR(INDEX(DaftarKelas[],MATCH(SUMPRODUCT((DaftarKelas[HARI]=JadwalKelas[[#Headers],[SABTU]])*(ROUNDDOWN($B32,10)>=ROUNDDOWN(DaftarKelas[WAKTU MULAI],10))*($B32<=DaftarKelas[WAKTU SELESAI]),DaftarKelas[UNIK]),DaftarKelas[UNIK],0),2),0)","v":0}]
[null,"15:15:00",{"$f":"IFERROR(INDEX(DaftarKelas[],MATCH(SUMPRODUCT((DaftarKelas[HARI]=JadwalKelas[[#Headers],[MINGGU]])*(ROUNDDOWN($B33,10)>=ROUNDDOWN(DaftarKelas[WAKTU MULAI],10))*($B33<=DaftarKelas[WAKTU SELESAI]),DaftarKelas[UNIK]),DaftarKelas[UNIK],0),2),0)","v":0},{"$f":"IFERROR(INDEX(DaftarKelas[],MATCH(SUMPRODUCT((DaftarKelas[HARI]=JadwalKelas[[#Headers],[SENIN]])*(ROUNDDOWN($B33,10)>=ROUNDDOWN(DaftarKelas[WAKTU MULAI],10))*($B33<=DaftarKelas[WAKTU SELESAI]),DaftarKelas[UNIK]),DaftarKelas[UNIK],0),2),0)","v":0},{"$f":"IFERROR(INDEX(DaftarKelas[],MATCH(SUMPRODUCT((DaftarKelas[HARI]=JadwalKelas[[#Headers],[SELASA]])*(ROUNDDOWN($B33,10)>=ROUNDDOWN(DaftarKelas[WAKTU MULAI],10))*($B33<=DaftarKelas[WAKTU SELESAI]),DaftarKelas[UNIK]),DaftarKelas[UNIK],0),2),0)","v":0},{"$f":"IFERROR(INDEX(DaftarKelas[],MATCH(SUMPRODUCT((DaftarKelas[HARI]=JadwalKelas[[#Headers],[RABU]])*(ROUNDDOWN($B33,10)>=ROUNDDOWN(DaftarKelas[WAKTU MULAI],10))*($B33<=DaftarKelas[WAKTU SELESAI]),DaftarKelas[UNIK]),DaftarKelas[UNIK],0),2),0)","v":0},{"$f":"IFERROR(INDEX(DaftarKelas[],MATCH(SUMPRODUCT((DaftarKelas[HARI]=JadwalKelas[[#Headers],[KAMIS]])*(ROUNDDOWN($B33,10)>=ROUNDDOWN(DaftarKelas[WAKTU MULAI],10))*($B33<=DaftarKelas[WAKTU SELESAI]),DaftarKelas[UNIK]),DaftarKelas[UNIK],0),2),0)","v":0},{"$f":"IFERROR(INDEX(DaftarKelas[],MATCH(SUMPRODUCT((DaftarKelas[HARI]=JadwalKelas[[#Headers],[JUMAT]])*(ROUNDDOWN($B33,10)>=ROUNDDOWN(DaftarKelas[WAKTU MULAI],10))*($B33<=DaftarKelas[WAKTU SELESAI]),DaftarKelas[UNIK]),DaftarKelas[UNIK],0),2),0)","v":0},{"$f":"IFERROR(INDEX(DaftarKelas[],MATCH(SUMPRODUCT((DaftarKelas[HARI]=JadwalKelas[[#Headers],[SABTU]])*(ROUNDDOWN($B33,10)>=ROUNDDOWN(DaftarKelas[WAKTU MULAI],10))*($B33<=DaftarKelas[WAKTU SELESAI]),DaftarKelas[UNIK]),DaftarKelas[UNIK],0),2),0)","v":0}]
[null,"15:30:00",{"$f":"IFERROR(INDEX(DaftarKelas[],MATCH(SUMPRODUCT((DaftarKelas[HARI]=JadwalKelas[[#Headers],[MINGGU]])*(ROUNDDOWN($B34,10)>=ROUNDDOWN(DaftarKelas[WAKTU MULAI],10))*($B34<=DaftarKelas[WAKTU SELESAI]),DaftarKelas[UNIK]),DaftarKelas[UNIK],0),2),0)","v":0},{"$f":"IFERROR(INDEX(DaftarKelas[],MATCH(SUMPRODUCT((DaftarKelas[HARI]=JadwalKelas[[#Headers],[SENIN]])*(ROUNDDOWN($B34,10)>=ROUNDDOWN(DaftarKelas[WAKTU MULAI],10))*($B34<=DaftarKelas[WAKTU SELESAI]),DaftarKelas[UNIK]),DaftarKelas[UNIK],0),2),0)","v":0},{"$f":"IFERROR(INDEX(DaftarKelas[],MATCH(SUMPRODUCT((DaftarKelas[HARI]=JadwalKelas[[#Headers],[SELASA]])*(ROUNDDOWN($B34,10)>=ROUNDDOWN(DaftarKelas[WAKTU MULAI],10))*($B34<=DaftarKelas[WAKTU SELESAI]),DaftarKelas[UNIK]),DaftarKelas[UNIK],0),2),0)","v":0},{"$f":"IFERROR(INDEX(DaftarKelas[],MATCH(SUMPRODUCT((DaftarKelas[HARI]=JadwalKelas[[#Headers],[RABU]])*(ROUNDDOWN($B34,10)>=ROUNDDOWN(DaftarKelas[WAKTU MULAI],10))*($B34<=DaftarKelas[WAKTU SELESAI]),DaftarKelas[UNIK]),DaftarKelas[UNIK],0),2),0)","v":0},{"$f":"IFERROR(INDEX(DaftarKelas[],MATCH(SUMPRODUCT((DaftarKelas[HARI]=JadwalKelas[[#Headers],[KAMIS]])*(ROUNDDOWN($B34,10)>=ROUNDDOWN(DaftarKelas[WAKTU MULAI],10))*($B34<=DaftarKelas[WAKTU SELESAI]),DaftarKelas[UNIK]),DaftarKelas[UNIK],0),2),0)","v":0},{"$f":"IFERROR(INDEX(DaftarKelas[],MATCH(SUMPRODUCT((DaftarKelas[HARI]=JadwalKelas[[#Headers],[JUMAT]])*(ROUNDDOWN($B34,10)>=ROUNDDOWN(DaftarKelas[WAKTU MULAI],10))*($B34<=DaftarKelas[WAKTU SELESAI]),DaftarKelas[UNIK]),DaftarKelas[UNIK],0),2),0)","v":0},{"$f":"IFERROR(INDEX(DaftarKelas[],MATCH(SUMPRODUCT((DaftarKelas[HARI]=JadwalKelas[[#Headers],[SABTU]])*(ROUNDDOWN($B34,10)>=ROUNDDOWN(DaftarKelas[WAKTU MULAI],10))*($B34<=DaftarKelas[WAKTU SELESAI]),DaftarKelas[UNIK]),DaftarKelas[UNIK],0),2),0)","v":0}]
[null,"15:45:00",{"$f":"IFERROR(INDEX(DaftarKelas[],MATCH(SUMPRODUCT((DaftarKelas[HARI]=JadwalKelas[[#Headers],[MINGGU]])*(ROUNDDOWN($B35,10)>=ROUNDDOWN(DaftarKelas[WAKTU MULAI],10))*($B35<=DaftarKelas[WAKTU SELESAI]),DaftarKelas[UNIK]),DaftarKelas[UNIK],0),2),0)","v":0},{"$f":"IFERROR(INDEX(DaftarKelas[],MATCH(SUMPRODUCT((DaftarKelas[HARI]=JadwalKelas[[#Headers],[SENIN]])*(ROUNDDOWN($B35,10)>=ROUNDDOWN(DaftarKelas[WAKTU MULAI],10))*($B35<=DaftarKelas[WAKTU SELESAI]),DaftarKelas[UNIK]),DaftarKelas[UNIK],0),2),0)","v":0},{"$f":"IFERROR(INDEX(DaftarKelas[],MATCH(SUMPRODUCT((DaftarKelas[HARI]=JadwalKelas[[#Headers],[SELASA]])*(ROUNDDOWN($B35,10)>=ROUNDDOWN(DaftarKelas[WAKTU MULAI],10))*($B35<=DaftarKelas[WAKTU SELESAI]),DaftarKelas[UNIK]),DaftarKelas[UNIK],0),2),0)","v":0},{"$f":"IFERROR(INDEX(DaftarKelas[],MATCH(SUMPRODUCT((DaftarKelas[HARI]=JadwalKelas[[#Headers],[RABU]])*(ROUNDDOWN($B35,10)>=ROUNDDOWN(DaftarKelas[WAKTU MULAI],10))*($B35<=DaftarKelas[WAKTU SELESAI]),DaftarKelas[UNIK]),DaftarKelas[UNIK],0),2),0)","v":0},{"$f":"IFERROR(INDEX(DaftarKelas[],MATCH(SUMPRODUCT((DaftarKelas[HARI]=JadwalKelas[[#Headers],[KAMIS]])*(ROUNDDOWN($B35,10)>=ROUNDDOWN(DaftarKelas[WAKTU MULAI],10))*($B35<=DaftarKelas[WAKTU SELESAI]),DaftarKelas[UNIK]),DaftarKelas[UNIK],0),2),0)","v":0},{"$f":"IFERROR(INDEX(DaftarKelas[],MATCH(SUMPRODUCT((DaftarKelas[HARI]=JadwalKelas[[#Headers],[JUMAT]])*(ROUNDDOWN($B35,10)>=ROUNDDOWN(DaftarKelas[WAKTU MULAI],10))*($B35<=DaftarKelas[WAKTU SELESAI]),DaftarKelas[UNIK]),DaftarKelas[UNIK],0),2),0)","v":0},{"$f":"IFERROR(INDEX(DaftarKelas[],MATCH(SUMPRODUCT((DaftarKelas[HARI]=JadwalKelas[[#Headers],[SABTU]])*(ROUNDDOWN($B35,10)>=ROUNDDOWN(DaftarKelas[WAKTU MULAI],10))*($B35<=DaftarKelas[WAKTU SELESAI]),DaftarKelas[UNIK]),DaftarKelas[UNIK],0),2),0)","v":0}]
[null,"16:00:00",{"$f":"IFERROR(INDEX(DaftarKelas[],MATCH(SUMPRODUCT((DaftarKelas[HARI]=JadwalKelas[[#Headers],[MINGGU]])*(ROUNDDOWN($B36,10)>=ROUNDDOWN(DaftarKelas[WAKTU MULAI],10))*($B36<=DaftarKelas[WAKTU SELESAI]),DaftarKelas[UNIK]),DaftarKelas[UNIK],0),2),0)","v":0},{"$f":"IFERROR(INDEX(DaftarKelas[],MATCH(SUMPRODUCT((DaftarKelas[HARI]=JadwalKelas[[#Headers],[SENIN]])*(ROUNDDOWN($B36,10)>=ROUNDDOWN(DaftarKelas[WAKTU MULAI],10))*($B36<=DaftarKelas[WAKTU SELESAI]),DaftarKelas[UNIK]),DaftarKelas[UNIK],0),2),0)","v":"SP-111"},{"$f":"IFERROR(INDEX(DaftarKelas[],MATCH(SUMPRODUCT((DaftarKelas[HARI]=JadwalKelas[[#Headers],[SELASA]])*(ROUNDDOWN($B36,10)>=ROUNDDOWN(DaftarKelas[WAKTU MULAI],10))*($B36<=DaftarKelas[WAKTU SELESAI]),DaftarKelas[UNIK]),DaftarKelas[UNIK],0),2),0)","v":0},{"$f":"IFERROR(INDEX(DaftarKelas[],MATCH(SUMPRODUCT((DaftarKelas[HARI]=JadwalKelas[[#Headers],[RABU]])*(ROUNDDOWN($B36,10)>=ROUNDDOWN(DaftarKelas[WAKTU MULAI],10))*($B36<=DaftarKelas[WAKTU SELESAI]),DaftarKelas[UNIK]),DaftarKelas[UNIK],0),2),0)","v":0},{"$f":"IFERROR(INDEX(DaftarKelas[],MATCH(SUMPRODUCT((DaftarKelas[HARI]=JadwalKelas[[#Headers],[KAMIS]])*(ROUNDDOWN($B36,10)>=ROUNDDOWN(DaftarKelas[WAKTU MULAI],10))*($B36<=DaftarKelas[WAKTU SELESAI]),DaftarKelas[UNIK]),DaftarKelas[UNIK],0),2),0)","v":0},{"$f":"IFERROR(INDEX(DaftarKelas[],MATCH(SUMPRODUCT((DaftarKelas[HARI]=JadwalKelas[[#Headers],[JUMAT]])*(ROUNDDOWN($B36,10)>=ROUNDDOWN(DaftarKelas[WAKTU MULAI],10))*($B36<=DaftarKelas[WAKTU SELESAI]),DaftarKelas[UNIK]),DaftarKelas[UNIK],0),2),0)","v":0},{"$f":"IFERROR(INDEX(DaftarKelas[],MATCH(SUMPRODUCT((DaftarKelas[HARI]=JadwalKelas[[#Headers],[SABTU]])*(ROUNDDOWN($B36,10)>=ROUNDDOWN(DaftarKelas[WAKTU MULAI],10))*($B36<=DaftarKelas[WAKTU SELESAI]),DaftarKelas[UNIK]),DaftarKelas[UNIK],0),2),0)","v":0}]
[null,{"$f":"B36+Penambahan","v":"16:15:00"},{"$f":"IFERROR(INDEX(DaftarKelas[],MATCH(SUMPRODUCT((DaftarKelas[HARI]=JadwalKelas[[#Headers],[MINGGU]])*(ROUNDDOWN($B37,10)>=ROUNDDOWN(DaftarKelas[WAKTU MULAI],10))*($B37<=DaftarKelas[WAKTU SELESAI]),DaftarKelas[UNIK]),DaftarKelas[UNIK],0),2),0)","v":0},{"$f":"IFERROR(INDEX(DaftarKelas[],MATCH(SUMPRODUCT((DaftarKelas[HARI]=JadwalKelas[[#Headers],[SENIN]])*(ROUNDDOWN($B37,10)>=ROUNDDOWN(DaftarKelas[WAKTU MULAI],10))*($B37<=DaftarKelas[WAKTU SELESAI]),DaftarKelas[UNIK]),DaftarKelas[UNIK],0),2),0)","v":"SP-111"},{"$f":"IFERROR(INDEX(DaftarKelas[],MATCH(SUMPRODUCT((DaftarKelas[HARI]=JadwalKelas[[#Headers],[SELASA]])*(ROUNDDOWN($B37,10)>=ROUNDDOWN(DaftarKelas[WAKTU MULAI],10))*($B37<=DaftarKelas[WAKTU SELESAI]),DaftarKelas[UNIK]),DaftarKelas[UNIK],0),2),0)","v":0},{"$f":"IFERROR(INDEX(DaftarKelas[],MATCH(SUMPRODUCT((DaftarKelas[HARI]=JadwalKelas[[#Headers],[RABU]])*(ROUNDDOWN($B37,10)>=ROUNDDOWN(DaftarKelas[WAKTU MULAI],10))*($B37<=DaftarKelas[WAKTU SELESAI]),DaftarKelas[UNIK]),DaftarKelas[UNIK],0),2),0)","v":0},{"$f":"IFERROR(INDEX(DaftarKelas[],MATCH(SUMPRODUCT((DaftarKelas[HARI]=JadwalKelas[[#Headers],[KAMIS]])*(ROUNDDOWN($B37,10)>=ROUNDDOWN(DaftarKelas[WAKTU MULAI],10))*($B37<=DaftarKelas[WAKTU SELESAI]),DaftarKelas[UNIK]),DaftarKelas[UNIK],0),2),0)","v":0},{"$f":"IFERROR(INDEX(DaftarKelas[],MATCH(SUMPRODUCT((DaftarKelas[HARI]=JadwalKelas[[#Headers],[JUMAT]])*(ROUNDDOWN($B37,10)>=ROUNDDOWN(DaftarKelas[WAKTU MULAI],10))*($B37<=DaftarKelas[WAKTU SELESAI]),DaftarKelas[UNIK]),DaftarKelas[UNIK],0),2),0)","v":0},{"$f":"IFERROR(INDEX(DaftarKelas[],MATCH(SUMPRODUCT((DaftarKelas[HARI]=JadwalKelas[[#Headers],[SABTU]])*(ROUNDDOWN($B37,10)>=ROUNDDOWN(DaftarKelas[WAKTU MULAI],10))*($B37<=DaftarKelas[WAKTU SELESAI]),DaftarKelas[UNIK]),DaftarKelas[UNIK],0),2),0)","v":0}]
[null,"16:30:00",{"$f":"IFERROR(INDEX(DaftarKelas[],MATCH(SUMPRODUCT((DaftarKelas[HARI]=JadwalKelas[[#Headers],[MINGGU]])*(ROUNDDOWN($B38,10)>=ROUNDDOWN(DaftarKelas[WAKTU MULAI],10))*($B38<=DaftarKelas[WAKTU SELESAI]),DaftarKelas[UNIK]),DaftarKelas[UNIK],0),2),0)","v":0},{"$f":"IFERROR(INDEX(DaftarKelas[],MATCH(SUMPRODUCT((DaftarKelas[HARI]=JadwalKelas[[#Headers],[SENIN]])*(ROUNDDOWN($B38,10)>=ROUNDDOWN(DaftarKelas[WAKTU MULAI],10))*($B38<=DaftarKelas[WAKTU SELESAI]),DaftarKelas[UNIK]),DaftarKelas[UNIK],0),2),0)","v":"SP-111"},{"$f":"IFERROR(INDEX(DaftarKelas[],MATCH(SUMPRODUCT((DaftarKelas[HARI]=JadwalKelas[[#Headers],[SELASA]])*(ROUNDDOWN($B38,10)>=ROUNDDOWN(DaftarKelas[WAKTU MULAI],10))*($B38<=DaftarKelas[WAKTU SELESAI]),DaftarKelas[UNIK]),DaftarKelas[UNIK],0),2),0)","v":0},{"$f":"IFERROR(INDEX(DaftarKelas[],MATCH(SUMPRODUCT((DaftarKelas[HARI]=JadwalKelas[[#Headers],[RABU]])*(ROUNDDOWN($B38,10)>=ROUNDDOWN(DaftarKelas[WAKTU MULAI],10))*($B38<=DaftarKelas[WAKTU SELESAI]),DaftarKelas[UNIK]),DaftarKelas[UNIK],0),2),0)","v":0},{"$f":"IFERROR(INDEX(DaftarKelas[],MATCH(SUMPRODUCT((DaftarKelas[HARI]=JadwalKelas[[#Headers],[KAMIS]])*(ROUNDDOWN($B38,10)>=ROUNDDOWN(DaftarKelas[WAKTU MULAI],10))*($B38<=DaftarKelas[WAKTU SELESAI]),DaftarKelas[UNIK]),DaftarKelas[UNIK],0),2),0)","v":0},{"$f":"IFERROR(INDEX(DaftarKelas[],MATCH(SUMPRODUCT((DaftarKelas[HARI]=JadwalKelas[[#Headers],[JUMAT]])*(ROUNDDOWN($B38,10)>=ROUNDDOWN(DaftarKelas[WAKTU MULAI],10))*($B38<=DaftarKelas[WAKTU SELESAI]),DaftarKelas[UNIK]),DaftarKelas[UNIK],0),2),0)","v":0},{"$f":"IFERROR(INDEX(DaftarKelas[],MATCH(SUMPRODUCT((DaftarKelas[HARI]=JadwalKelas[[#Headers],[SABTU]])*(ROUNDDOWN($B38,10)>=ROUNDDOWN(DaftarKelas[WAKTU MULAI],10))*($B38<=DaftarKelas[WAKTU SELESAI]),DaftarKelas[UNIK]),DaftarKelas[UNIK],0),2),0)","v":0}]
[null,"16:45:00",{"$f":"IFERROR(INDEX(DaftarKelas[],MATCH(SUMPRODUCT((DaftarKelas[HARI]=JadwalKelas[[#Headers],[MINGGU]])*(ROUNDDOWN($B39,10)>=ROUNDDOWN(DaftarKelas[WAKTU MULAI],10))*($B39<=DaftarKelas[WAKTU SELESAI]),DaftarKelas[UNIK]),DaftarKelas[UNIK],0),2),0)","v":0},{"$f":"IFERROR(INDEX(DaftarKelas[],MATCH(SUMPRODUCT((DaftarKelas[HARI]=JadwalKelas[[#Headers],[SENIN]])*(ROUNDDOWN($B39,10)>=ROUNDDOWN(DaftarKelas[WAKTU MULAI],10))*($B39<=DaftarKelas[WAKTU SELESAI]),DaftarKelas[UNIK]),DaftarKelas[UNIK],0),2),0)","v":"SP-111"},{"$f":"IFERROR(INDEX(DaftarKelas[],MATCH(SUMPRODUCT((DaftarKelas[HARI]=JadwalKelas[[#Headers],[SELASA]])*(ROUNDDOWN($B39,10)>=ROUNDDOWN(DaftarKelas[WAKTU MULAI],10))*($B39<=DaftarKelas[WAKTU SELESAI]),DaftarKelas[UNIK]),DaftarKelas[UNIK],0),2),0)","v":0},{"$f":"IFERROR(INDEX(DaftarKelas[],MATCH(SUMPRODUCT((DaftarKelas[HARI]=JadwalKelas[[#Headers],[RABU]])*(ROUNDDOWN($B39,10)>=ROUNDDOWN(DaftarKelas[WAKTU MULAI],10))*($B39<=DaftarKelas[WAKTU SELESAI]),DaftarKelas[UNIK]),DaftarKelas[UNIK],0),2),0)","v":0},{"$f":"IFERROR(INDEX(DaftarKelas[],MATCH(SUMPRODUCT((DaftarKelas[HARI]=JadwalKelas[[#Headers],[KAMIS]])*(ROUNDDOWN($B39,10)>=ROUNDDOWN(DaftarKelas[WAKTU MULAI],10))*($B39<=DaftarKelas[WAKTU SELESAI]),DaftarKelas[UNIK]),DaftarKelas[UNIK],0),2),0)","v":0},{"$f":"IFERROR(INDEX(DaftarKelas[],MATCH(SUMPRODUCT((DaftarKelas[HARI]=JadwalKelas[[#Headers],[JUMAT]])*(ROUNDDOWN($B39,10)>=ROUNDDOWN(DaftarKelas[WAKTU MULAI],10))*($B39<=DaftarKelas[WAKTU SELESAI]),DaftarKelas[UNIK]),DaftarKelas[UNIK],0),2),0)","v":0},{"$f":"IFERROR(INDEX(DaftarKelas[],MATCH(SUMPRODUCT((DaftarKelas[HARI]=JadwalKelas[[#Headers],[SABTU]])*(ROUNDDOWN($B39,10)>=ROUNDDOWN(DaftarKelas[WAKTU MULAI],10))*($B39<=DaftarKelas[WAKTU SELESAI]),DaftarKelas[UNIK]),DaftarKelas[UNIK],0),2),0)","v":0}]
[null,"17:00:00",{"$f":"IFERROR(INDEX(DaftarKelas[],MATCH(SUMPRODUCT((DaftarKelas[HARI]=JadwalKelas[[#Headers],[MINGGU]])*(ROUNDDOWN($B40,10)>=ROUNDDOWN(DaftarKelas[WAKTU MULAI],10))*($B40<=DaftarKelas[WAKTU SELESAI]),DaftarKelas[UNIK]),DaftarKelas[UNIK],0),2),0)","v":0},{"$f":"IFERROR(INDEX(DaftarKelas[],MATCH(SUMPRODUCT((DaftarKelas[HARI]=JadwalKelas[[#Headers],[SENIN]])*(ROUNDDOWN($B40,10)>=ROUNDDOWN(DaftarKelas[WAKTU MULAI],10))*($B40<=DaftarKelas[WAKTU SELESAI]),DaftarKelas[UNIK]),DaftarKelas[UNIK],0),2),0)","v":"SP-111"},{"$f":"IFERROR(INDEX(DaftarKelas[],MATCH(SUMPRODUCT((DaftarKelas[HARI]=JadwalKelas[[#Headers],[SELASA]])*(ROUNDDOWN($B40,10)>=ROUNDDOWN(DaftarKelas[WAKTU MULAI],10))*($B40<=DaftarKelas[WAKTU SELESAI]),DaftarKelas[UNIK]),DaftarKelas[UNIK],0),2),0)","v":0},{"$f":"IFERROR(INDEX(DaftarKelas[],MATCH(SUMPRODUCT((DaftarKelas[HARI]=JadwalKelas[[#Headers],[RABU]])*(ROUNDDOWN($B40,10)>=ROUNDDOWN(DaftarKelas[WAKTU MULAI],10))*($B40<=DaftarKelas[WAKTU SELESAI]),DaftarKelas[UNIK]),DaftarKelas[UNIK],0),2),0)","v":0},{"$f":"IFERROR(INDEX(DaftarKelas[],MATCH(SUMPRODUCT((DaftarKelas[HARI]=JadwalKelas[[#Headers],[KAMIS]])*(ROUNDDOWN($B40,10)>=ROUNDDOWN(DaftarKelas[WAKTU MULAI],10))*($B40<=DaftarKelas[WAKTU SELESAI]),DaftarKelas[UNIK]),DaftarKelas[UNIK],0),2),0)","v":0},{"$f":"IFERROR(INDEX(DaftarKelas[],MATCH(SUMPRODUCT((DaftarKelas[HARI]=JadwalKelas[[#Headers],[JUMAT]])*(ROUNDDOWN($B40,10)>=ROUNDDOWN(DaftarKelas[WAKTU MULAI],10))*($B40<=DaftarKelas[WAKTU SELESAI]),DaftarKelas[UNIK]),DaftarKelas[UNIK],0),2),0)","v":0},{"$f":"IFERROR(INDEX(DaftarKelas[],MATCH(SUMPRODUCT((DaftarKelas[HARI]=JadwalKelas[[#Headers],[SABTU]])*(ROUNDDOWN($B40,10)>=ROUNDDOWN(DaftarKelas[WAKTU MULAI],10))*($B40<=DaftarKelas[WAKTU SELESAI]),DaftarKelas[UNIK]),DaftarKelas[UNIK],0),2),0)","v":0}]
[null,"17:15:00",{"$f":"IFERROR(INDEX(DaftarKelas[],MATCH(SUMPRODUCT((DaftarKelas[HARI]=JadwalKelas[[#Headers],[MINGGU]])*(ROUNDDOWN($B41,10)>=ROUNDDOWN(DaftarKelas[WAKTU MULAI],10))*($B41<=DaftarKelas[WAKTU SELESAI]),DaftarKelas[UNIK]),DaftarKelas[UNIK],0),2),0)","v":0},{"$f":"IFERROR(INDEX(DaftarKelas[],MATCH(SUMPRODUCT((DaftarKelas[HARI]=JadwalKelas[[#Headers],[SENIN]])*(ROUNDDOWN($B41,10)>=ROUNDDOWN(DaftarKelas[WAKTU MULAI],10))*($B41<=DaftarKelas[WAKTU SELESAI]),DaftarKelas[UNIK]),DaftarKelas[UNIK],0),2),0)","v":0},{"$f":"IFERROR(INDEX(DaftarKelas[],MATCH(SUMPRODUCT((DaftarKelas[HARI]=JadwalKelas[[#Headers],[SELASA]])*(ROUNDDOWN($B41,10)>=ROUNDDOWN(DaftarKelas[WAKTU MULAI],10))*($B41<=DaftarKelas[WAKTU SELESAI]),DaftarKelas[UNIK]),DaftarKelas[UNIK],0),2),0)","v":0},{"$f":"IFERROR(INDEX(DaftarKelas[],MATCH(SUMPRODUCT((DaftarKelas[HARI]=JadwalKelas[[#Headers],[RABU]])*(ROUNDDOWN($B41,10)>=ROUNDDOWN(DaftarKelas[WAKTU MULAI],10))*($B41<=DaftarKelas[WAKTU SELESAI]),DaftarKelas[UNIK]),DaftarKelas[UNIK],0),2),0)","v":0},{"$f":"IFERROR(INDEX(DaftarKelas[],MATCH(SUMPRODUCT((DaftarKelas[HARI]=JadwalKelas[[#Headers],[KAMIS]])*(ROUNDDOWN($B41,10)>=ROUNDDOWN(DaftarKelas[WAKTU MULAI],10))*($B41<=DaftarKelas[WAKTU SELESAI]),DaftarKelas[UNIK]),DaftarKelas[UNIK],0),2),0)","v":0},{"$f":"IFERROR(INDEX(DaftarKelas[],MATCH(SUMPRODUCT((DaftarKelas[HARI]=JadwalKelas[[#Headers],[JUMAT]])*(ROUNDDOWN($B41,10)>=ROUNDDOWN(DaftarKelas[WAKTU MULAI],10))*($B41<=DaftarKelas[WAKTU SELESAI]),DaftarKelas[UNIK]),DaftarKelas[UNIK],0),2),0)","v":0},{"$f":"IFERROR(INDEX(DaftarKelas[],MATCH(SUMPRODUCT((DaftarKelas[HARI]=JadwalKelas[[#Headers],[SABTU]])*(ROUNDDOWN($B41,10)>=ROUNDDOWN(DaftarKelas[WAKTU MULAI],10))*($B41<=DaftarKelas[WAKTU SELESAI]),DaftarKelas[UNIK]),DaftarKelas[UNIK],0),2),0)","v":0}]
[null,"17:30:00",{"$f":"IFERROR(INDEX(DaftarKelas[],MATCH(SUMPRODUCT((DaftarKelas[HARI]=JadwalKelas[[#Headers],[MINGGU]])*(ROUNDDOWN($B42,10)>=ROUNDDOWN(DaftarKelas[WAKTU MULAI],10))*($B42<=DaftarKelas[WAKTU SELESAI]),DaftarKelas[UNIK]),DaftarKelas[UNIK],0),2),0)","v":0},{"$f":"IFERROR(INDEX(DaftarKelas[],MATCH(SUMPRODUCT((DaftarKelas[HARI]=JadwalKelas[[#Headers],[SENIN]])*(ROUNDDOWN($B42,10)>=ROUNDDOWN(DaftarKelas[WAKTU MULAI],10))*($B42<=DaftarKelas[WAKTU SELESAI]),DaftarKelas[UNIK]),DaftarKelas[UNIK],0),2),0)","v":0},{"$f":"IFERROR(INDEX(DaftarKelas[],MATCH(SUMPRODUCT((DaftarKelas[HARI]=JadwalKelas[[#Headers],[SELASA]])*(ROUNDDOWN($B42,10)>=ROUNDDOWN(DaftarKelas[WAKTU MULAI],10))*($B42<=DaftarKelas[WAKTU SELESAI]),DaftarKelas[UNIK]),DaftarKelas[UNIK],0),2),0)","v":0},{"$f":"IFERROR(INDEX(DaftarKelas[],MATCH(SUMPRODUCT((DaftarKelas[HARI]=JadwalKelas[[#Headers],[RABU]])*(ROUNDDOWN($B42,10)>=ROUNDDOWN(DaftarKelas[WAKTU MULAI],10))*($B42<=DaftarKelas[WAKTU SELESAI]),DaftarKelas[UNIK]),DaftarKelas[UNIK],0),2),0)","v":0},{"$f":"IFERROR(INDEX(DaftarKelas[],MATCH(SUMPRODUCT((DaftarKelas[HARI]=JadwalKelas[[#Headers],[KAMIS]])*(ROUNDDOWN($B42,10)>=ROUNDDOWN(DaftarKelas[WAKTU MULAI],10))*($B42<=DaftarKelas[WAKTU SELESAI]),DaftarKelas[UNIK]),DaftarKelas[UNIK],0),2),0)","v":0},{"$f":"IFERROR(INDEX(DaftarKelas[],MATCH(SUMPRODUCT((DaftarKelas[HARI]=JadwalKelas[[#Headers],[JUMAT]])*(ROUNDDOWN($B42,10)>=ROUNDDOWN(DaftarKelas[WAKTU MULAI],10))*($B42<=DaftarKelas[WAKTU SELESAI]),DaftarKelas[UNIK]),DaftarKelas[UNIK],0),2),0)","v":0},{"$f":"IFERROR(INDEX(DaftarKelas[],MATCH(SUMPRODUCT((DaftarKelas[HARI]=JadwalKelas[[#Headers],[SABTU]])*(ROUNDDOWN($B42,10)>=ROUNDDOWN(DaftarKelas[WAKTU MULAI],10))*($B42<=DaftarKelas[WAKTU SELESAI]),DaftarKelas[UNIK]),DaftarKelas[UNIK],0),2),0)","v":0}]
[null,"17:45:00",{"$f":"IFERROR(INDEX(DaftarKelas[],MATCH(SUMPRODUCT((DaftarKelas[HARI]=JadwalKelas[[#Headers],[MINGGU]])*(ROUNDDOWN($B43,10)>=ROUNDDOWN(DaftarKelas[WAKTU MULAI],10))*($B43<=DaftarKelas[WAKTU SELESAI]),DaftarKelas[UNIK]),DaftarKelas[UNIK],0),2),0)","v":0},{"$f":"IFERROR(INDEX(DaftarKelas[],MATCH(SUMPRODUCT((DaftarKelas[HARI]=JadwalKelas[[#Headers],[SENIN]])*(ROUNDDOWN($B43,10)>=ROUNDDOWN(DaftarKelas[WAKTU MULAI],10))*($B43<=DaftarKelas[WAKTU SELESAI]),DaftarKelas[UNIK]),DaftarKelas[UNIK],0),2),0)","v":0},{"$f":"IFERROR(INDEX(DaftarKelas[],MATCH(SUMPRODUCT((DaftarKelas[HARI]=JadwalKelas[[#Headers],[SELASA]])*(ROUNDDOWN($B43,10)>=ROUNDDOWN(DaftarKelas[WAKTU MULAI],10))*($B43<=DaftarKelas[WAKTU SELESAI]),DaftarKelas[UNIK]),DaftarKelas[UNIK],0),2),0)","v":0},{"$f":"IFERROR(INDEX(DaftarKelas[],MATCH(SUMPRODUCT((DaftarKelas[HARI]=JadwalKelas[[#Headers],[RABU]])*(ROUNDDOWN($B43,10)>=ROUNDDOWN(DaftarKelas[WAKTU MULAI],10))*($B43<=DaftarKelas[WAKTU SELESAI]),DaftarKelas[UNIK]),DaftarKelas[UNIK],0),2),0)","v":0},{"$f":"IFERROR(INDEX(DaftarKelas[],MATCH(SUMPRODUCT((DaftarKelas[HARI]=JadwalKelas[[#Headers],[KAMIS]])*(ROUNDDOWN($B43,10)>=ROUNDDOWN(DaftarKelas[WAKTU MULAI],10))*($B43<=DaftarKelas[WAKTU SELESAI]),DaftarKelas[UNIK]),DaftarKelas[UNIK],0),2),0)","v":0},{"$f":"IFERROR(INDEX(DaftarKelas[],MATCH(SUMPRODUCT((DaftarKelas[HARI]=JadwalKelas[[#Headers],[JUMAT]])*(ROUNDDOWN($B43,10)>=ROUNDDOWN(DaftarKelas[WAKTU MULAI],10))*($B43<=DaftarKelas[WAKTU SELESAI]),DaftarKelas[UNIK]),DaftarKelas[UNIK],0),2),0)","v":0},{"$f":"IFERROR(INDEX(DaftarKelas[],MATCH(SUMPRODUCT((DaftarKelas[HARI]=JadwalKelas[[#Headers],[SABTU]])*(ROUNDDOWN($B43,10)>=ROUNDDOWN(DaftarKelas[WAKTU MULAI],10))*($B43<=DaftarKelas[WAKTU SELESAI]),DaftarKelas[UNIK]),DaftarKelas[UNIK],0),2),0)","v":0}]
[null,"18:00:00",{"$f":"IFERROR(INDEX(DaftarKelas[],MATCH(SUMPRODUCT((DaftarKelas[HARI]=JadwalKelas[[#Headers],[MINGGU]])*(ROUNDDOWN($B44,10)>=ROUNDDOWN(DaftarKelas[WAKTU MULAI],10))*($B44<=DaftarKelas[WAKTU SELESAI]),DaftarKelas[UNIK]),DaftarKelas[UNIK],0),2),0)","v":0},{"$f":"IFERROR(INDEX(DaftarKelas[],MATCH(SUMPRODUCT((DaftarKelas[HARI]=JadwalKelas[[#Headers],[SENIN]])*(ROUNDDOWN($B44,10)>=ROUNDDOWN(DaftarKelas[WAKTU MULAI],10))*($B44<=DaftarKelas[WAKTU SELESAI]),DaftarKelas[UNIK]),DaftarKelas[UNIK],0),2),0)","v":0},{"$f":"IFERROR(INDEX(DaftarKelas[],MATCH(SUMPRODUCT((DaftarKelas[HARI]=JadwalKelas[[#Headers],[SELASA]])*(ROUNDDOWN($B44,10)>=ROUNDDOWN(DaftarKelas[WAKTU MULAI],10))*($B44<=DaftarKelas[WAKTU SELESAI]),DaftarKelas[UNIK]),DaftarKelas[UNIK],0),2),0)","v":0},{"$f":"IFERROR(INDEX(DaftarKelas[],MATCH(SUMPRODUCT((DaftarKelas[HARI]=JadwalKelas[[#Headers],[RABU]])*(ROUNDDOWN($B44,10)>=ROUNDDOWN(DaftarKelas[WAKTU MULAI],10))*($B44<=DaftarKelas[WAKTU SELESAI]),DaftarKelas[UNIK]),DaftarKelas[UNIK],0),2),0)","v":0},{"$f":"IFERROR(INDEX(DaftarKelas[],MATCH(SUMPRODUCT((DaftarKelas[HARI]=JadwalKelas[[#Headers],[KAMIS]])*(ROUNDDOWN($B44,10)>=ROUNDDOWN(DaftarKelas[WAKTU MULAI],10))*($B44<=DaftarKelas[WAKTU SELESAI]),DaftarKelas[UNIK]),DaftarKelas[UNIK],0),2),0)","v":0},{"$f":"IFERROR(INDEX(DaftarKelas[],MATCH(SUMPRODUCT((DaftarKelas[HARI]=JadwalKelas[[#Headers],[JUMAT]])*(ROUNDDOWN($B44,10)>=ROUNDDOWN(DaftarKelas[WAKTU MULAI],10))*($B44<=DaftarKelas[WAKTU SELESAI]),DaftarKelas[UNIK]),DaftarKelas[UNIK],0),2),0)","v":0},{"$f":"IFERROR(INDEX(DaftarKelas[],MATCH(SUMPRODUCT((DaftarKelas[HARI]=JadwalKelas[[#Headers],[SABTU]])*(ROUNDDOWN($B44,10)>=ROUNDDOWN(DaftarKelas[WAKTU MULAI],10))*($B44<=DaftarKelas[WAKTU SELESAI]),DaftarKelas[UNIK]),DaftarKelas[UNIK],0),2),0)","v":0}]
[null,"18:15:00",{"$f":"IFERROR(INDEX(DaftarKelas[],MATCH(SUMPRODUCT((DaftarKelas[HARI]=JadwalKelas[[#Headers],[MINGGU]])*(ROUNDDOWN($B45,10)>=ROUNDDOWN(DaftarKelas[WAKTU MULAI],10))*($B45<=DaftarKelas[WAKTU SELESAI]),DaftarKelas[UNIK]),DaftarKelas[UNIK],0),2),0)","v":0},{"$f":"IFERROR(INDEX(DaftarKelas[],MATCH(SUMPRODUCT((DaftarKelas[HARI]=JadwalKelas[[#Headers],[SENIN]])*(ROUNDDOWN($B45,10)>=ROUNDDOWN(DaftarKelas[WAKTU MULAI],10))*($B45<=DaftarKelas[WAKTU SELESAI]),DaftarKelas[UNIK]),DaftarKelas[UNIK],0),2),0)","v":0},{"$f":"IFERROR(INDEX(DaftarKelas[],MATCH(SUMPRODUCT((DaftarKelas[HARI]=JadwalKelas[[#Headers],[SELASA]])*(ROUNDDOWN($B45,10)>=ROUNDDOWN(DaftarKelas[WAKTU MULAI],10))*($B45<=DaftarKelas[WAKTU SELESAI]),DaftarKelas[UNIK]),DaftarKelas[UNIK],0),2),0)","v":0},{"$f":"IFERROR(INDEX(DaftarKelas[],MATCH(SUMPRODUCT((DaftarKelas[HARI]=JadwalKelas[[#Headers],[RABU]])*(ROUNDDOWN($B45,10)>=ROUNDDOWN(DaftarKelas[WAKTU MULAI],10))*($B45<=DaftarKelas[WAKTU SELESAI]),DaftarKelas[UNIK]),DaftarKelas[UNIK],0),2),0)","v":0},{"$f":"IFERROR(INDEX(DaftarKelas[],MATCH(SUMPRODUCT((DaftarKelas[HARI]=JadwalKelas[[#Headers],[KAMIS]])*(ROUNDDOWN($B45,10)>=ROUNDDOWN(DaftarKelas[WAKTU MULAI],10))*($B45<=DaftarKelas[WAKTU SELESAI]),DaftarKelas[UNIK]),DaftarKelas[UNIK],0),2),0)","v":0},{"$f":"IFERROR(INDEX(DaftarKelas[],MATCH(SUMPRODUCT((DaftarKelas[HARI]=JadwalKelas[[#Headers],[JUMAT]])*(ROUNDDOWN($B45,10)>=ROUNDDOWN(DaftarKelas[WAKTU MULAI],10))*($B45<=DaftarKelas[WAKTU SELESAI]),DaftarKelas[UNIK]),DaftarKelas[UNIK],0),2),0)","v":0},{"$f":"IFERROR(INDEX(DaftarKelas[],MATCH(SUMPRODUCT((DaftarKelas[HARI]=JadwalKelas[[#Headers],[SABTU]])*(ROUNDDOWN($B45,10)>=ROUNDDOWN(DaftarKelas[WAKTU MULAI],10))*($B45<=DaftarKelas[WAKTU SELESAI]),DaftarKelas[UNIK]),DaftarKelas[UNIK],0),2),0)","v":0}]
[null,"18:30:00",{"$f":"IFERROR(INDEX(DaftarKelas[],MATCH(SUMPRODUCT((DaftarKelas[HARI]=JadwalKelas[[#Headers],[MINGGU]])*(ROUNDDOWN($B46,10)>=ROUNDDOWN(DaftarKelas[WAKTU MULAI],10))*($B46<=DaftarKelas[WAKTU SELESAI]),DaftarKelas[UNIK]),DaftarKelas[UNIK],0),2),0)","v":0},{"$f":"IFERROR(INDEX(DaftarKelas[],MATCH(SUMPRODUCT((DaftarKelas[HARI]=JadwalKelas[[#Headers],[SENIN]])*(ROUNDDOWN($B46,10)>=ROUNDDOWN(DaftarKelas[WAKTU MULAI],10))*($B46<=DaftarKelas[WAKTU SELESAI]),DaftarKelas[UNIK]),DaftarKelas[UNIK],0),2),0)","v":0},{"$f":"IFERROR(INDEX(DaftarKelas[],MATCH(SUMPRODUCT((DaftarKelas[HARI]=JadwalKelas[[#Headers],[SELASA]])*(ROUNDDOWN($B46,10)>=ROUNDDOWN(DaftarKelas[WAKTU MULAI],10))*($B46<=DaftarKelas[WAKTU SELESAI]),DaftarKelas[UNIK]),DaftarKelas[UNIK],0),2),0)","v":0},{"$f":"IFERROR(INDEX(DaftarKelas[],MATCH(SUMPRODUCT((DaftarKelas[HARI]=JadwalKelas[[#Headers],[RABU]])*(ROUNDDOWN($B46,10)>=ROUNDDOWN(DaftarKelas[WAKTU MULAI],10))*($B46<=DaftarKelas[WAKTU SELESAI]),DaftarKelas[UNIK]),DaftarKelas[UNIK],0),2),0)","v":0},{"$f":"IFERROR(INDEX(DaftarKelas[],MATCH(SUMPRODUCT((DaftarKelas[HARI]=JadwalKelas[[#Headers],[KAMIS]])*(ROUNDDOWN($B46,10)>=ROUNDDOWN(DaftarKelas[WAKTU MULAI],10))*($B46<=DaftarKelas[WAKTU SELESAI]),DaftarKelas[UNIK]),DaftarKelas[UNIK],0),2),0)","v":0},{"$f":"IFERROR(INDEX(DaftarKelas[],MATCH(SUMPRODUCT((DaftarKelas[HARI]=JadwalKelas[[#Headers],[JUMAT]])*(ROUNDDOWN($B46,10)>=ROUNDDOWN(DaftarKelas[WAKTU MULAI],10))*($B46<=DaftarKelas[WAKTU SELESAI]),DaftarKelas[UNIK]),DaftarKelas[UNIK],0),2),0)","v":0},{"$f":"IFERROR(INDEX(DaftarKelas[],MATCH(SUMPRODUCT((DaftarKelas[HARI]=JadwalKelas[[#Headers],[SABTU]])*(ROUNDDOWN($B46,10)>=ROUNDDOWN(DaftarKelas[WAKTU MULAI],10))*($B46<=DaftarKelas[WAKTU SELESAI]),DaftarKelas[UNIK]),DaftarKelas[UNIK],0),2),0)","v":0}]
[null,"18:45:00",{"$f":"IFERROR(INDEX(DaftarKelas[],MATCH(SUMPRODUCT((DaftarKelas[HARI]=JadwalKelas[[#Headers],[MINGGU]])*(ROUNDDOWN($B47,10)>=ROUNDDOWN(DaftarKelas[WAKTU MULAI],10))*($B47<=DaftarKelas[WAKTU SELESAI]),DaftarKelas[UNIK]),DaftarKelas[UNIK],0),2),0)","v":0},{"$f":"IFERROR(INDEX(DaftarKelas[],MATCH(SUMPRODUCT((DaftarKelas[HARI]=JadwalKelas[[#Headers],[SENIN]])*(ROUNDDOWN($B47,10)>=ROUNDDOWN(DaftarKelas[WAKTU MULAI],10))*($B47<=DaftarKelas[WAKTU SELESAI]),DaftarKelas[UNIK]),DaftarKelas[UNIK],0),2),0)","v":0},{"$f":"IFERROR(INDEX(DaftarKelas[],MATCH(SUMPRODUCT((DaftarKelas[HARI]=JadwalKelas[[#Headers],[SELASA]])*(ROUNDDOWN($B47,10)>=ROUNDDOWN(DaftarKelas[WAKTU MULAI],10))*($B47<=DaftarKelas[WAKTU SELESAI]),DaftarKelas[UNIK]),DaftarKelas[UNIK],0),2),0)","v":0},{"$f":"IFERROR(INDEX(DaftarKelas[],MATCH(SUMPRODUCT((DaftarKelas[HARI]=JadwalKelas[[#Headers],[RABU]])*(ROUNDDOWN($B47,10)>=ROUNDDOWN(DaftarKelas[WAKTU MULAI],10))*($B47<=DaftarKelas[WAKTU SELESAI]),DaftarKelas[UNIK]),DaftarKelas[UNIK],0),2),0)","v":0},{"$f":"IFERROR(INDEX(DaftarKelas[],MATCH(SUMPRODUCT((DaftarKelas[HARI]=JadwalKelas[[#Headers],[KAMIS]])*(ROUNDDOWN($B47,10)>=ROUNDDOWN(DaftarKelas[WAKTU MULAI],10))*($B47<=DaftarKelas[WAKTU SELESAI]),DaftarKelas[UNIK]),DaftarKelas[UNIK],0),2),0)","v":0},{"$f":"IFERROR(INDEX(DaftarKelas[],MATCH(SUMPRODUCT((DaftarKelas[HARI]=JadwalKelas[[#Headers],[JUMAT]])*(ROUNDDOWN($B47,10)>=ROUNDDOWN(DaftarKelas[WAKTU MULAI],10))*($B47<=DaftarKelas[WAKTU SELESAI]),DaftarKelas[UNIK]),DaftarKelas[UNIK],0),2),0)","v":0},{"$f":"IFERROR(INDEX(DaftarKelas[],MATCH(SUMPRODUCT((DaftarKelas[HARI]=JadwalKelas[[#Headers],[SABTU]])*(ROUNDDOWN($B47,10)>=ROUNDDOWN(DaftarKelas[WAKTU MULAI],10))*($B47<=DaftarKelas[WAKTU SELESAI]),DaftarKelas[UNIK]),DaftarKelas[UNIK],0),2),0)","v":0}]
[null,"19:00:00",{"$f":"IFERROR(INDEX(DaftarKelas[],MATCH(SUMPRODUCT((DaftarKelas[HARI]=JadwalKelas[[#Headers],[MINGGU]])*(ROUNDDOWN($B48,10)>=ROUNDDOWN(DaftarKelas[WAKTU MULAI],10))*($B48<=DaftarKelas[WAKTU SELESAI]),DaftarKelas[UNIK]),DaftarKelas[UNIK],0),2),0)","v":0},{"$f":"IFERROR(INDEX(DaftarKelas[],MATCH(SUMPRODUCT((DaftarKelas[HARI]=JadwalKelas[[#Headers],[SENIN]])*(ROUNDDOWN($B48,10)>=ROUNDDOWN(DaftarKelas[WAKTU MULAI],10))*($B48<=DaftarKelas[WAKTU SELESAI]),DaftarKelas[UNIK]),DaftarKelas[UNIK],0),2),0)","v":0},{"$f":"IFERROR(INDEX(DaftarKelas[],MATCH(SUMPRODUCT((DaftarKelas[HARI]=JadwalKelas[[#Headers],[SELASA]])*(ROUNDDOWN($B48,10)>=ROUNDDOWN(DaftarKelas[WAKTU MULAI],10))*($B48<=DaftarKelas[WAKTU SELESAI]),DaftarKelas[UNIK]),DaftarKelas[UNIK],0),2),0)","v":0},{"$f":"IFERROR(INDEX(DaftarKelas[],MATCH(SUMPRODUCT((DaftarKelas[HARI]=JadwalKelas[[#Headers],[RABU]])*(ROUNDDOWN($B48,10)>=ROUNDDOWN(DaftarKelas[WAKTU MULAI],10))*($B48<=DaftarKelas[WAKTU SELESAI]),DaftarKelas[UNIK]),DaftarKelas[UNIK],0),2),0)","v":0},{"$f":"IFERROR(INDEX(DaftarKelas[],MATCH(SUMPRODUCT((DaftarKelas[HARI]=JadwalKelas[[#Headers],[KAMIS]])*(ROUNDDOWN($B48,10)>=ROUNDDOWN(DaftarKelas[WAKTU MULAI],10))*($B48<=DaftarKelas[WAKTU SELESAI]),DaftarKelas[UNIK]),DaftarKelas[UNIK],0),2),0)","v":0},{"$f":"IFERROR(INDEX(DaftarKelas[],MATCH(SUMPRODUCT((DaftarKelas[HARI]=JadwalKelas[[#Headers],[JUMAT]])*(ROUNDDOWN($B48,10)>=ROUNDDOWN(DaftarKelas[WAKTU MULAI],10))*($B48<=DaftarKelas[WAKTU SELESAI]),DaftarKelas[UNIK]),DaftarKelas[UNIK],0),2),0)","v":0},{"$f":"IFERROR(INDEX(DaftarKelas[],MATCH(SUMPRODUCT((DaftarKelas[HARI]=JadwalKelas[[#Headers],[SABTU]])*(ROUNDDOWN($B48,10)>=ROUNDDOWN(DaftarKelas[WAKTU MULAI],10))*($B48<=DaftarKelas[WAKTU SELESAI]),DaftarKelas[UNIK]),DaftarKelas[UNIK],0),2),0)","v":0}]
[null,"19:15:00",{"$f":"IFERROR(INDEX(DaftarKelas[],MATCH(SUMPRODUCT((DaftarKelas[HARI]=JadwalKelas[[#Headers],[MINGGU]])*(ROUNDDOWN($B49,10)>=ROUNDDOWN(DaftarKelas[WAKTU MULAI],10))*($B49<=DaftarKelas[WAKTU SELESAI]),DaftarKelas[UNIK]),DaftarKelas[UNIK],0),2),0)","v":0},{"$f":"IFERROR(INDEX(DaftarKelas[],MATCH(SUMPRODUCT((DaftarKelas[HARI]=JadwalKelas[[#Headers],[SENIN]])*(ROUNDDOWN($B49,10)>=ROUNDDOWN(DaftarKelas[WAKTU MULAI],10))*($B49<=DaftarKelas[WAKTU SELESAI]),DaftarKelas[UNIK]),DaftarKelas[UNIK],0),2),0)","v":0},{"$f":"IFERROR(INDEX(DaftarKelas[],MATCH(SUMPRODUCT((DaftarKelas[HARI]=JadwalKelas[[#Headers],[SELASA]])*(ROUNDDOWN($B49,10)>=ROUNDDOWN(DaftarKelas[WAKTU MULAI],10))*($B49<=DaftarKelas[WAKTU SELESAI]),DaftarKelas[UNIK]),DaftarKelas[UNIK],0),2),0)","v":0},{"$f":"IFERROR(INDEX(DaftarKelas[],MATCH(SUMPRODUCT((DaftarKelas[HARI]=JadwalKelas[[#Headers],[RABU]])*(ROUNDDOWN($B49,10)>=ROUNDDOWN(DaftarKelas[WAKTU MULAI],10))*($B49<=DaftarKelas[WAKTU SELESAI]),DaftarKelas[UNIK]),DaftarKelas[UNIK],0),2),0)","v":0},{"$f":"IFERROR(INDEX(DaftarKelas[],MATCH(SUMPRODUCT((DaftarKelas[HARI]=JadwalKelas[[#Headers],[KAMIS]])*(ROUNDDOWN($B49,10)>=ROUNDDOWN(DaftarKelas[WAKTU MULAI],10))*($B49<=DaftarKelas[WAKTU SELESAI]),DaftarKelas[UNIK]),DaftarKelas[UNIK],0),2),0)","v":0},{"$f":"IFERROR(INDEX(DaftarKelas[],MATCH(SUMPRODUCT((DaftarKelas[HARI]=JadwalKelas[[#Headers],[JUMAT]])*(ROUNDDOWN($B49,10)>=ROUNDDOWN(DaftarKelas[WAKTU MULAI],10))*($B49<=DaftarKelas[WAKTU SELESAI]),DaftarKelas[UNIK]),DaftarKelas[UNIK],0),2),0)","v":0},{"$f":"IFERROR(INDEX(DaftarKelas[],MATCH(SUMPRODUCT((DaftarKelas[HARI]=JadwalKelas[[#Headers],[SABTU]])*(ROUNDDOWN($B49,10)>=ROUNDDOWN(DaftarKelas[WAKTU MULAI],10))*($B49<=DaftarKelas[WAKTU SELESAI]),DaftarKelas[UNIK]),DaftarKelas[UNIK],0),2),0)","v":0}]
[null,"19:30:00",{"$f":"IFERROR(INDEX(DaftarKelas[],MATCH(SUMPRODUCT((DaftarKelas[HARI]=JadwalKelas[[#Headers],[MINGGU]])*(ROUNDDOWN($B50,10)>=ROUNDDOWN(DaftarKelas[WAKTU MULAI],10))*($B50<=DaftarKelas[WAKTU SELESAI]),DaftarKelas[UNIK]),DaftarKelas[UNIK],0),2),0)","v":0},{"$f":"IFERROR(INDEX(DaftarKelas[],MATCH(SUMPRODUCT((DaftarKelas[HARI]=JadwalKelas[[#Headers],[SENIN]])*(ROUNDDOWN($B50,10)>=ROUNDDOWN(DaftarKelas[WAKTU MULAI],10))*($B50<=DaftarKelas[WAKTU SELESAI]),DaftarKelas[UNIK]),DaftarKelas[UNIK],0),2),0)","v":0},{"$f":"IFERROR(INDEX(DaftarKelas[],MATCH(SUMPRODUCT((DaftarKelas[HARI]=JadwalKelas[[#Headers],[SELASA]])*(ROUNDDOWN($B50,10)>=ROUNDDOWN(DaftarKelas[WAKTU MULAI],10))*($B50<=DaftarKelas[WAKTU SELESAI]),DaftarKelas[UNIK]),DaftarKelas[UNIK],0),2),0)","v":0},{"$f":"IFERROR(INDEX(DaftarKelas[],MATCH(SUMPRODUCT((DaftarKelas[HARI]=JadwalKelas[[#Headers],[RABU]])*(ROUNDDOWN($B50,10)>=ROUNDDOWN(DaftarKelas[WAKTU MULAI],10))*($B50<=DaftarKelas[WAKTU SELESAI]),DaftarKelas[UNIK]),DaftarKelas[UNIK],0),2),0)","v":0},{"$f":"IFERROR(INDEX(DaftarKelas[],MATCH(SUMPRODUCT((DaftarKelas[HARI]=JadwalKelas[[#Headers],[KAMIS]])*(ROUNDDOWN($B50,10)>=ROUNDDOWN(DaftarKelas[WAKTU MULAI],10))*($B50<=DaftarKelas[WAKTU SELESAI]),DaftarKelas[UNIK]),DaftarKelas[UNIK],0),2),0)","v":0},{"$f":"IFERROR(INDEX(DaftarKelas[],MATCH(SUMPRODUCT((DaftarKelas[HARI]=JadwalKelas[[#Headers],[JUMAT]])*(ROUNDDOWN($B50,10)>=ROUNDDOWN(DaftarKelas[WAKTU MULAI],10))*($B50<=DaftarKelas[WAKTU SELESAI]),DaftarKelas[UNIK]),DaftarKelas[UNIK],0),2),0)","v":0},{"$f":"IFERROR(INDEX(DaftarKelas[],MATCH(SUMPRODUCT((DaftarKelas[HARI]=JadwalKelas[[#Headers],[SABTU]])*(ROUNDDOWN($B50,10)>=ROUNDDOWN(DaftarKelas[WAKTU MULAI],10))*($B50<=DaftarKelas[WAKTU SELESAI]),DaftarKelas[UNIK]),DaftarKelas[UNIK],0),2),0)","v":0}]
[null,"19:45:00",{"$f":"IFERROR(INDEX(DaftarKelas[],MATCH(SUMPRODUCT((DaftarKelas[HARI]=JadwalKelas[[#Headers],[MINGGU]])*(ROUNDDOWN($B51,10)>=ROUNDDOWN(DaftarKelas[WAKTU MULAI],10))*($B51<=DaftarKelas[WAKTU SELESAI]),DaftarKelas[UNIK]),DaftarKelas[UNIK],0),2),0)","v":0},{"$f":"IFERROR(INDEX(DaftarKelas[],MATCH(SUMPRODUCT((DaftarKelas[HARI]=JadwalKelas[[#Headers],[SENIN]])*(ROUNDDOWN($B51,10)>=ROUNDDOWN(DaftarKelas[WAKTU MULAI],10))*($B51<=DaftarKelas[WAKTU SELESAI]),DaftarKelas[UNIK]),DaftarKelas[UNIK],0),2),0)","v":0},{"$f":"IFERROR(INDEX(DaftarKelas[],MATCH(SUMPRODUCT((DaftarKelas[HARI]=JadwalKelas[[#Headers],[SELASA]])*(ROUNDDOWN($B51,10)>=ROUNDDOWN(DaftarKelas[WAKTU MULAI],10))*($B51<=DaftarKelas[WAKTU SELESAI]),DaftarKelas[UNIK]),DaftarKelas[UNIK],0),2),0)","v":0},{"$f":"IFERROR(INDEX(DaftarKelas[],MATCH(SUMPRODUCT((DaftarKelas[HARI]=JadwalKelas[[#Headers],[RABU]])*(ROUNDDOWN($B51,10)>=ROUNDDOWN(DaftarKelas[WAKTU MULAI],10))*($B51<=DaftarKelas[WAKTU SELESAI]),DaftarKelas[UNIK]),DaftarKelas[UNIK],0),2),0)","v":0},{"$f":"IFERROR(INDEX(DaftarKelas[],MATCH(SUMPRODUCT((DaftarKelas[HARI]=JadwalKelas[[#Headers],[KAMIS]])*(ROUNDDOWN($B51,10)>=ROUNDDOWN(DaftarKelas[WAKTU MULAI],10))*($B51<=DaftarKelas[WAKTU SELESAI]),DaftarKelas[UNIK]),DaftarKelas[UNIK],0),2),0)","v":0},{"$f":"IFERROR(INDEX(DaftarKelas[],MATCH(SUMPRODUCT((DaftarKelas[HARI]=JadwalKelas[[#Headers],[JUMAT]])*(ROUNDDOWN($B51,10)>=ROUNDDOWN(DaftarKelas[WAKTU MULAI],10))*($B51<=DaftarKelas[WAKTU SELESAI]),DaftarKelas[UNIK]),DaftarKelas[UNIK],0),2),0)","v":0},{"$f":"IFERROR(INDEX(DaftarKelas[],MATCH(SUMPRODUCT((DaftarKelas[HARI]=JadwalKelas[[#Headers],[SABTU]])*(ROUNDDOWN($B51,10)>=ROUNDDOWN(DaftarKelas[WAKTU MULAI],10))*($B51<=DaftarKelas[WAKTU SELESAI]),DaftarKelas[UNIK]),DaftarKelas[UNIK],0),2),0)","v":0}]
[null,"20:00:00",{"$f":"IFERROR(INDEX(DaftarKelas[],MATCH(SUMPRODUCT((DaftarKelas[HARI]=JadwalKelas[[#Headers],[MINGGU]])*(ROUNDDOWN($B52,10)>=ROUNDDOWN(DaftarKelas[WAKTU MULAI],10))*($B52<=DaftarKelas[WAKTU SELESAI]),DaftarKelas[UNIK]),DaftarKelas[UNIK],0),2),0)","v":0},{"$f":"IFERROR(INDEX(DaftarKelas[],MATCH(SUMPRODUCT((DaftarKelas[HARI]=JadwalKelas[[#Headers],[SENIN]])*(ROUNDDOWN($B52,10)>=ROUNDDOWN(DaftarKelas[WAKTU MULAI],10))*($B52<=DaftarKelas[WAKTU SELESAI]),DaftarKelas[UNIK]),DaftarKelas[UNIK],0),2),0)","v":0},{"$f":"IFERROR(INDEX(DaftarKelas[],MATCH(SUMPRODUCT((DaftarKelas[HARI]=JadwalKelas[[#Headers],[SELASA]])*(ROUNDDOWN($B52,10)>=ROUNDDOWN(DaftarKelas[WAKTU MULAI],10))*($B52<=DaftarKelas[WAKTU SELESAI]),DaftarKelas[UNIK]),DaftarKelas[UNIK],0),2),0)","v":0},{"$f":"IFERROR(INDEX(DaftarKelas[],MATCH(SUMPRODUCT((DaftarKelas[HARI]=JadwalKelas[[#Headers],[RABU]])*(ROUNDDOWN($B52,10)>=ROUNDDOWN(DaftarKelas[WAKTU MULAI],10))*($B52<=DaftarKelas[WAKTU SELESAI]),DaftarKelas[UNIK]),DaftarKelas[UNIK],0),2),0)","v":0},{"$f":"IFERROR(INDEX(DaftarKelas[],MATCH(SUMPRODUCT((DaftarKelas[HARI]=JadwalKelas[[#Headers],[KAMIS]])*(ROUNDDOWN($B52,10)>=ROUNDDOWN(DaftarKelas[WAKTU MULAI],10))*($B52<=DaftarKelas[WAKTU SELESAI]),DaftarKelas[UNIK]),DaftarKelas[UNIK],0),2),0)","v":0},{"$f":"IFERROR(INDEX(DaftarKelas[],MATCH(SUMPRODUCT((DaftarKelas[HARI]=JadwalKelas[[#Headers],[JUMAT]])*(ROUNDDOWN($B52,10)>=ROUNDDOWN(DaftarKelas[WAKTU MULAI],10))*($B52<=DaftarKelas[WAKTU SELESAI]),DaftarKelas[UNIK]),DaftarKelas[UNIK],0),2),0)","v":0},{"$f":"IFERROR(INDEX(DaftarKelas[],MATCH(SUMPRODUCT((DaftarKelas[HARI]=JadwalKelas[[#Headers],[SABTU]])*(ROUNDDOWN($B52,10)>=ROUNDDOWN(DaftarKelas[WAKTU MULAI],10))*($B52<=DaftarKelas[WAKTU SELESAI]),DaftarKelas[UNIK]),DaftarKelas[UNIK],0),2),0)","v":0}]
[null,"20:15:00",{"$f":"IFERROR(INDEX(DaftarKelas[],MATCH(SUMPRODUCT((DaftarKelas[HARI]=JadwalKelas[[#Headers],[MINGGU]])*(ROUNDDOWN($B53,10)>=ROUNDDOWN(DaftarKelas[WAKTU MULAI],10))*($B53<=DaftarKelas[WAKTU SELESAI]),DaftarKelas[UNIK]),DaftarKelas[UNIK],0),2),0)","v":0},{"$f":"IFERROR(INDEX(DaftarKelas[],MATCH(SUMPRODUCT((DaftarKelas[HARI]=JadwalKelas[[#Headers],[SENIN]])*(ROUNDDOWN($B53,10)>=ROUNDDOWN(DaftarKelas[WAKTU MULAI],10))*($B53<=DaftarKelas[WAKTU SELESAI]),DaftarKelas[UNIK]),DaftarKelas[UNIK],0),2),0)","v":0},{"$f":"IFERROR(INDEX(DaftarKelas[],MATCH(SUMPRODUCT((DaftarKelas[HARI]=JadwalKelas[[#Headers],[SELASA]])*(ROUNDDOWN($B53,10)>=ROUNDDOWN(DaftarKelas[WAKTU MULAI],10))*($B53<=DaftarKelas[WAKTU SELESAI]),DaftarKelas[UNIK]),DaftarKelas[UNIK],0),2),0)","v":0},{"$f":"IFERROR(INDEX(DaftarKelas[],MATCH(SUMPRODUCT((DaftarKelas[HARI]=JadwalKelas[[#Headers],[RABU]])*(ROUNDDOWN($B53,10)>=ROUNDDOWN(DaftarKelas[WAKTU MULAI],10))*($B53<=DaftarKelas[WAKTU SELESAI]),DaftarKelas[UNIK]),DaftarKelas[UNIK],0),2),0)","v":0},{"$f":"IFERROR(INDEX(DaftarKelas[],MATCH(SUMPRODUCT((DaftarKelas[HARI]=JadwalKelas[[#Headers],[KAMIS]])*(ROUNDDOWN($B53,10)>=ROUNDDOWN(DaftarKelas[WAKTU MULAI],10))*($B53<=DaftarKelas[WAKTU SELESAI]),DaftarKelas[UNIK]),DaftarKelas[UNIK],0),2),0)","v":0},{"$f":"IFERROR(INDEX(DaftarKelas[],MATCH(SUMPRODUCT((DaftarKelas[HARI]=JadwalKelas[[#Headers],[JUMAT]])*(ROUNDDOWN($B53,10)>=ROUNDDOWN(DaftarKelas[WAKTU MULAI],10))*($B53<=DaftarKelas[WAKTU SELESAI]),DaftarKelas[UNIK]),DaftarKelas[UNIK],0),2),0)","v":0},{"$f":"IFERROR(INDEX(DaftarKelas[],MATCH(SUMPRODUCT((DaftarKelas[HARI]=JadwalKelas[[#Headers],[SABTU]])*(ROUNDDOWN($B53,10)>=ROUNDDOWN(DaftarKelas[WAKTU MULAI],10))*($B53<=DaftarKelas[WAKTU SELESAI]),DaftarKelas[UNIK]),DaftarKelas[UNIK],0),2),0)","v":0}]
[null,"20:30:00",{"$f":"IFERROR(INDEX(DaftarKelas[],MATCH(SUMPRODUCT((DaftarKelas[HARI]=JadwalKelas[[#Headers],[MINGGU]])*(ROUNDDOWN($B54,10)>=ROUNDDOWN(DaftarKelas[WAKTU MULAI],10))*($B54<=DaftarKelas[WAKTU SELESAI]),DaftarKelas[UNIK]),DaftarKelas[UNIK],0),2),0)","v":0},{"$f":"IFERROR(INDEX(DaftarKelas[],MATCH(SUMPRODUCT((DaftarKelas[HARI]=JadwalKelas[[#Headers],[SENIN]])*(ROUNDDOWN($B54,10)>=ROUNDDOWN(DaftarKelas[WAKTU MULAI],10))*($B54<=DaftarKelas[WAKTU SELESAI]),DaftarKelas[UNIK]),DaftarKelas[UNIK],0),2),0)","v":0},{"$f":"IFERROR(INDEX(DaftarKelas[],MATCH(SUMPRODUCT((DaftarKelas[HARI]=JadwalKelas[[#Headers],[SELASA]])*(ROUNDDOWN($B54,10)>=ROUNDDOWN(DaftarKelas[WAKTU MULAI],10))*($B54<=DaftarKelas[WAKTU SELESAI]),DaftarKelas[UNIK]),DaftarKelas[UNIK],0),2),0)","v":0},{"$f":"IFERROR(INDEX(DaftarKelas[],MATCH(SUMPRODUCT((DaftarKelas[HARI]=JadwalKelas[[#Headers],[RABU]])*(ROUNDDOWN($B54,10)>=ROUNDDOWN(DaftarKelas[WAKTU MULAI],10))*($B54<=DaftarKelas[WAKTU SELESAI]),DaftarKelas[UNIK]),DaftarKelas[UNIK],0),2),0)","v":0},{"$f":"IFERROR(INDEX(DaftarKelas[],MATCH(SUMPRODUCT((DaftarKelas[HARI]=JadwalKelas[[#Headers],[KAMIS]])*(ROUNDDOWN($B54,10)>=ROUNDDOWN(DaftarKelas[WAKTU MULAI],10))*($B54<=DaftarKelas[WAKTU SELESAI]),DaftarKelas[UNIK]),DaftarKelas[UNIK],0),2),0)","v":0},{"$f":"IFERROR(INDEX(DaftarKelas[],MATCH(SUMPRODUCT((DaftarKelas[HARI]=JadwalKelas[[#Headers],[JUMAT]])*(ROUNDDOWN($B54,10)>=ROUNDDOWN(DaftarKelas[WAKTU MULAI],10))*($B54<=DaftarKelas[WAKTU SELESAI]),DaftarKelas[UNIK]),DaftarKelas[UNIK],0),2),0)","v":0},{"$f":"IFERROR(INDEX(DaftarKelas[],MATCH(SUMPRODUCT((DaftarKelas[HARI]=JadwalKelas[[#Headers],[SABTU]])*(ROUNDDOWN($B54,10)>=ROUNDDOWN(DaftarKelas[WAKTU MULAI],10))*($B54<=DaftarKelas[WAKTU SELESAI]),DaftarKelas[UNIK]),DaftarKelas[UNIK],0),2),0)","v":0}]
[null,"20:45:00",{"$f":"IFERROR(INDEX(DaftarKelas[],MATCH(SUMPRODUCT((DaftarKelas[HARI]=JadwalKelas[[#Headers],[MINGGU]])*(ROUNDDOWN($B55,10)>=ROUNDDOWN(DaftarKelas[WAKTU MULAI],10))*($B55<=DaftarKelas[WAKTU SELESAI]),DaftarKelas[UNIK]),DaftarKelas[UNIK],0),2),0)","v":0},{"$f":"IFERROR(INDEX(DaftarKelas[],MATCH(SUMPRODUCT((DaftarKelas[HARI]=JadwalKelas[[#Headers],[SENIN]])*(ROUNDDOWN($B55,10)>=ROUNDDOWN(DaftarKelas[WAKTU MULAI],10))*($B55<=DaftarKelas[WAKTU SELESAI]),DaftarKelas[UNIK]),DaftarKelas[UNIK],0),2),0)","v":0},{"$f":"IFERROR(INDEX(DaftarKelas[],MATCH(SUMPRODUCT((DaftarKelas[HARI]=JadwalKelas[[#Headers],[SELASA]])*(ROUNDDOWN($B55,10)>=ROUNDDOWN(DaftarKelas[WAKTU MULAI],10))*($B55<=DaftarKelas[WAKTU SELESAI]),DaftarKelas[UNIK]),DaftarKelas[UNIK],0),2),0)","v":0},{"$f":"IFERROR(INDEX(DaftarKelas[],MATCH(SUMPRODUCT((DaftarKelas[HARI]=JadwalKelas[[#Headers],[RABU]])*(ROUNDDOWN($B55,10)>=ROUNDDOWN(DaftarKelas[WAKTU MULAI],10))*($B55<=DaftarKelas[WAKTU SELESAI]),DaftarKelas[UNIK]),DaftarKelas[UNIK],0),2),0)","v":0},{"$f":"IFERROR(INDEX(DaftarKelas[],MATCH(SUMPRODUCT((DaftarKelas[HARI]=JadwalKelas[[#Headers],[KAMIS]])*(ROUNDDOWN($B55,10)>=ROUNDDOWN(DaftarKelas[WAKTU MULAI],10))*($B55<=DaftarKelas[WAKTU SELESAI]),DaftarKelas[UNIK]),DaftarKelas[UNIK],0),2),0)","v":0},{"$f":"IFERROR(INDEX(DaftarKelas[],MATCH(SUMPRODUCT((DaftarKelas[HARI]=JadwalKelas[[#Headers],[JUMAT]])*(ROUNDDOWN($B55,10)>=ROUNDDOWN(DaftarKelas[WAKTU MULAI],10))*($B55<=DaftarKelas[WAKTU SELESAI]),DaftarKelas[UNIK]),DaftarKelas[UNIK],0),2),0)","v":0},{"$f":"IFERROR(INDEX(DaftarKelas[],MATCH(SUMPRODUCT((DaftarKelas[HARI]=JadwalKelas[[#Headers],[SABTU]])*(ROUNDDOWN($B55,10)>=ROUNDDOWN(DaftarKelas[WAKTU MULAI],10))*($B55<=DaftarKelas[WAKTU SELESAI]),DaftarKelas[UNIK]),DaftarKelas[UNIK],0),2),0)","v":0}]
[null,"21:00:00",{"$f":"IFERROR(INDEX(DaftarKelas[],MATCH(SUMPRODUCT((DaftarKelas[HARI]=JadwalKelas[[#Headers],[MINGGU]])*(ROUNDDOWN($B56,10)>=ROUNDDOWN(DaftarKelas[WAKTU MULAI],10))*($B56<=DaftarKelas[WAKTU SELESAI]),DaftarKelas[UNIK]),DaftarKelas[UNIK],0),2),0)","v":0},{"$f":"IFERROR(INDEX(DaftarKelas[],MATCH(SUMPRODUCT((DaftarKelas[HARI]=JadwalKelas[[#Headers],[SENIN]])*(ROUNDDOWN($B56,10)>=ROUNDDOWN(DaftarKelas[WAKTU MULAI],10))*($B56<=DaftarKelas[WAKTU SELESAI]),DaftarKelas[UNIK]),DaftarKelas[UNIK],0),2),0)","v":0},{"$f":"IFERROR(INDEX(DaftarKelas[],MATCH(SUMPRODUCT((DaftarKelas[HARI]=JadwalKelas[[#Headers],[SELASA]])*(ROUNDDOWN($B56,10)>=ROUNDDOWN(DaftarKelas[WAKTU MULAI],10))*($B56<=DaftarKelas[WAKTU SELESAI]),DaftarKelas[UNIK]),DaftarKelas[UNIK],0),2),0)","v":0},{"$f":"IFERROR(INDEX(DaftarKelas[],MATCH(SUMPRODUCT((DaftarKelas[HARI]=JadwalKelas[[#Headers],[RABU]])*(ROUNDDOWN($B56,10)>=ROUNDDOWN(DaftarKelas[WAKTU MULAI],10))*($B56<=DaftarKelas[WAKTU SELESAI]),DaftarKelas[UNIK]),DaftarKelas[UNIK],0),2),0)","v":0},{"$f":"IFERROR(INDEX(DaftarKelas[],MATCH(SUMPRODUCT((DaftarKelas[HARI]=JadwalKelas[[#Headers],[KAMIS]])*(ROUNDDOWN($B56,10)>=ROUNDDOWN(DaftarKelas[WAKTU MULAI],10))*($B56<=DaftarKelas[WAKTU SELESAI]),DaftarKelas[UNIK]),DaftarKelas[UNIK],0),2),0)","v":0},{"$f":"IFERROR(INDEX(DaftarKelas[],MATCH(SUMPRODUCT((DaftarKelas[HARI]=JadwalKelas[[#Headers],[JUMAT]])*(ROUNDDOWN($B56,10)>=ROUNDDOWN(DaftarKelas[WAKTU MULAI],10))*($B56<=DaftarKelas[WAKTU SELESAI]),DaftarKelas[UNIK]),DaftarKelas[UNIK],0),2),0)","v":0},{"$f":"IFERROR(INDEX(DaftarKelas[],MATCH(SUMPRODUCT((DaftarKelas[HARI]=JadwalKelas[[#Headers],[SABTU]])*(ROUNDDOWN($B56,10)>=ROUNDDOWN(DaftarKelas[WAKTU MULAI],10))*($B56<=DaftarKelas[WAKTU SELESAI]),DaftarKelas[UNIK]),DaftarKelas[UNIK],0),2),0)","v":0}]

{"sheet":"Daftar Kelas","index":1,"n_rows":10,"n_cols":8,"rows_kept":10,"merged":[[0,1,0,5],[0,6,0,7]]}
[null,"DAFTAR KELAS",{"$nulls":4},"Jadwal Kelas"]
[null,"KELAS","Kode","HARI","LOKASI","WAKTU MULAI","WAKTU SELESAI","UNIK"]
[null,"Penulisan Teknis","WR-121","SENIN","Bangunan A","13:00:00","14:00:00",{"$f":"ROW()-ROW(DaftarKelas[[#Headers],[UNIK]])","v":1}]
[null,"Penulisan Teknis","WR-121","RABU","Bangunan A","13:00:00","14:00:00",{"$f":"ROW()-ROW(DaftarKelas[[#Headers],[UNIK]])","v":2}]
[null,"Komunikasi Publik","SP-111","SENIN","Bangunan B","16:00:00","17:00:00",{"$f":"ROW()-ROW(DaftarKelas[[#Headers],[UNIK]])","v":3}]
[null,"Kesehatan & Kebugaran","HPE-295","SELASA","Bangunan B","11:00:00","12:00:00",{"$f":"ROW()-ROW(DaftarKelas[[#Headers],[UNIK]])","v":4}]
[null,"Kesehatan & Kebugaran","HPE-295","KAMIS","Bangunan B","11:00:00","12:00:00",{"$f":"ROW()-ROW(DaftarKelas[[#Headers],[UNIK]])","v":5}]
[null,"Aljabar","MTH-113","SENIN","Bangunan C","08:10:00","09:15:00",{"$f":"ROW()-ROW(DaftarKelas[[#Headers],[UNIK]])","v":6}]
[null,"Aljabar","MTH-113","RABU","Bangunan C","08:10:00","09:15:00",{"$f":"ROW()-ROW(DaftarKelas[[#Headers],[UNIK]])","v":7}]
[null,"Aljabar","MTH-113","JUMAT","Bangunan C","08:10:00","09:15:00",{"$f":"ROW()-ROW(DaftarKelas[[#Headers],[UNIK]])","v":8}]